Cogmind - Beta 10.2 @@@ ROGUE MODE // 2022.01.04 @ 17:31:38 Player: tangiers Result: Destroyed by Tracker with Immobilizer Performance ------------- Evolutions (8) 4000 Regions Visited (36) 7200 Robots Destroyed (183) 915 Value Destroyed (5816) 5816 Prototype IDs (71) 1420 Alien Tech Used (11) 2200 Bonus (4153) 4153 TOTAL SCORE: 25704 Bonus ------- High Alert Combat Kills 431 Follower Combat Kills 1200 Network Hubs Disabled 200 Aligned with FarCom 300 Met Data Miner 300 Met Zhirov 300 Built Enhanced Grunts 300 A7 Reached Mainframe 300 Scanned by Researcher 500 Pursued by Intercept 500 Friendly Fire -178 Cogmind --------- Core Integrity 0/1700 Matter 301/425 Energy 99/100 System Corruption 4% Temperature Cool (0) Movement Core (50) Location -2/Section 7 Parts ------- > --- POWER (2) -------- (None) > --- PROPULSION (6) --- (None) > --- UTILITY (12) ----- Advanced Signal Interpreter Advanced Armor Integrity Analyzer Advanced Armor Integrity Analyzer > --- WEAPON (4) ------- (None) > --- INVENTORY (4) ---- Matter Drive Enhanced Force Lance Enhanced Force Lance Peak State ------------ > --- POWER ------------ Micro Fission Core Light Antimatter Reactor > --- PROPULSION ------- Impulse Thruster Array Impulse Thruster Array Impulse Thruster Array > --- UTILITY ---------- Medium Storage Unit Experimental Sensor Array Advanced Signal Interpreter Advanced Armor Integrity Analyzer Advanced Armor Integrity Analyzer Advanced Transmission Jammer Centrium Medium Armor Plating Centrium Medium Armor Plating Centrium Medium Armor Plating Advanced Thermal Shield Matter Drive > --- WEAPON ----------- Nova Cannon Sigix Broadsword > --- INVENTORY -------- Field Propulsion Array Centrium Medium Armor Plating Subatomic Replicator Improved Remote Datajack Enhanced Force Lance Enhanced Force Lance [Rating: 195] Favorites ----------- Power Light Antimatter Reactor Engine Heavy Ion Engine Power Core Micro Nuclear Core Reactor Light Antimatter Reactor Propulsion Light Treads Treads Light Treads Leg Aluminum Leg Wheel Compact Wheel Hover Unit Aerolev Unit Flight Unit Improved VTOL Module Utility Advanced Signal Interpreter Device Improved Heat Sink Storage Medium Storage Unit Processor Advanced Signal Interpreter Hackware Advanced Hacking Suite Protection Improved Propulsion Shielding Artifact Matter Drive Weapon Advanced Beam Cannon Energy Gun Improved Medium Laser Energy Cannon Advanced Beam Cannon Ballistic Gun Light Assault Rifle Ballistic Cannon Enhanced Gauss Cannon Launcher Guided EMP Blaster Special Weapon Stasis Beam Impact Weapon Shock Maul Slashing Weapon Sigix Broadsword Piercing Weapon Spear Build | -11 -10 -10 -9 -9 -9 -8 -8 -7 -7 -7 -7 -7 -7 -6 -6 -6 -6 -6 -6 -6 -5 -5 -5 -5 -5 -4 -4 -4 -4 -4 -4 -3 -3 -2 -2 -2 ------- Run | Scr Mat Min Mat Min Exi Min Mat Fac Was Fac Low Low Dat Pro Fac Was Fac Low Low Zio Pro Fac Upp Upp Zhi Pro Fac Ext Cet Arc Hub Res Qua Res Tes Sec Slots Evolved 16 | . . . 2 . . . 2 2 . . . . . . 2 . . . . . . 2 . . . . 2 . . . . 2 . 2 . . Power 1 | . . . . . . . . . . . . . . . 1 . . . . . . . . . . . . . . . . . . . . . Propulsion 4 | . . . 1 . . . . 2 . . . . . . . . . . . . . 1 . . . . . . . . . . . . . . Utility 10 | . . . 1 . . . 2 . . . . . . . 1 . . . . . . 1 . . . . 2 . . . . 2 . 1 . . Weapon 1 | . . . . . . . . . . . . . . . . . . . . . . . . . . . . . . . . . . 1 . . Parts Attached 425 | 3 16 7 55 6 5 6 42 33 8 7 1 1 . . 16 . 11 5 . 3 4 15 . . 13 3 8 22 11 2 5 6 26 10 51 24 Power 47 | . 1 1 2 . . 1 . 4 2 . . . . . 4 . 3 . . 2 . 1 . . 4 . . 3 2 . 1 . 4 1 10 1 Engine 9 | . 1 1 2 . . 1 . 2 . . . . . . 1 . 1 . . . . . . . . . . . . . . . . . . . Core 14 | . . . . . . . . 2 1 . . . . . 3 . 2 . . 1 . . . . 1 . . 2 . . 1 . 1 . . . Reactor 24 | . . . . . . . . . 1 . . . . . . . . . . 1 . 1 . . 3 . . 1 2 . . . 3 1 10 1 Propulsion 72 | 2 7 2 20 . . . 15 6 . 1 . . . . 1 . 3 . . . . 2 . . 3 . 1 1 1 . . 3 1 . 3 . Treads 39 | 1 4 2 19 . . . 13 . . . . . . . . . . . . . . . . . . . . . . . . . . . . . Leg . | . . . . . . . . . . . . . . . . . . . . . . . . . . . . . . . . . . . . . Wheel 4 | 1 3 . . . . . . . . . . . . . . . . . . . . . . . . . . . . . . . . . . . Hover 1 | . . . . . . . 1 . . . . . . . . . . . . . . . . . . . . . . . . . . . . . Flight 28 | . . . 1 . . . 1 6 . 1 . . . . 1 . 3 . . . . 2 . . 3 . 1 1 1 . . 3 1 . 3 . Utility 144 | 1 2 . 8 . 3 . 8 11 4 4 . . . . 9 . 1 . . . 2 6 . . 4 . 5 5 7 2 1 2 13 8 31 7 Device 56 | 1 1 . 2 . 1 . 1 4 2 2 . . . . 6 . . . . . 1 2 . . 1 . 2 . 3 1 1 . 3 1 19 2 Storage 16 | . 1 . 3 . 2 . . 1 . 1 . . . . 2 . 1 . . . . 1 . . . . . 1 1 . . . . 2 . . Processor 10 | . . . . . . . 1 2 . . . . . . . . . . . . . . . . . . . 1 . . . 1 2 . 3 . Hackware 6 | . . . . . . . . . . 1 . . . . . . . . . . . 1 . . . . 2 1 . . . . . 1 . . Protection 54 | . . . 3 . . . 6 4 2 . . . . . 1 . . . . . 1 2 . . 3 . 1 2 3 1 . 1 7 3 9 5 Artifact 2 | . . . . . . . . . . . . . . . . . . . . . . . . . . . . . . . . . 1 1 . . Weapon 162 | . 6 4 25 6 2 5 19 12 2 2 1 1 . . 2 . 4 5 . 1 2 6 . . 2 3 2 13 1 . 3 1 8 1 7 16 Energy Gun 13 | . 2 1 10 . . . . . . . . . . . . . . . . . . . . . . . . . . . . . . . . . Energy Cannon 48 | . . . 9 5 2 3 10 . . . . . . . 1 . . . . . . . . . . . . . . . . 1 2 . 1 14 Ballistic Gun 13 | . 2 1 . . . . 6 . . . . . . . . . 1 1 . 1 . . . . . . . . . . 1 . . . . . Ballistic Cannon 16 | . . 1 1 . . . . . . . . . . . . . . . . . . 2 . . 1 1 1 5 1 . 2 . 1 . . . Launcher 24 | . 2 1 4 1 . 2 1 . . 1 1 . . . 1 . 2 2 . . 1 . . . . 1 . 3 . . . . . . . 1 Special Weapon 4 | . . . . . . . . . . . . . . . . . . . . . . 2 . . . . . . . . . . 1 1 . . Impact Weapon 6 | . . . . . . . . 5 . . . . . . . . . . . . . . . . . . . . . . . . . . 1 . Slashing Weapon 10 | . . . 1 . . . 2 5 . . . . . . . . . . . . . . . . . . . . . . . . 1 . 1 . Piercing Weapon 28 | . . . . . . . . 2 2 1 . 1 . . . . 1 2 . . 1 2 . . 1 1 1 5 . . . . 3 . 4 1 Special Melee Weapon . | . . . . . . . . . . . . . . . . . . . . . . . . . . . . . . . . . . . . . Unidentified Prototypes 24 | . . . 4 . . . 3 . . . . . . . . . 1 . . . 1 . . . 5 . . . 1 . . . 2 . 2 5 Parts Lost 22 | . 1 5 1 . . 1 . . . . . . . . 1 . . . . . . . . . . . . . . . 2 . . . 1 10 Power 3 | . . 1 . . . 1 . . . . . . . . . . . . . . . . . . . . . . . . 1 . . . . . Propulsion 5 | . . 2 . . . . . . . . . . . . . . . . . . . . . . . . . . . . . . . . . 3 Utility 7 | . 1 . . . . . . . . . . . . . . . . . . . . . . . . . . . . . . . . . . 6 Weapon 7 | . . 2 1 . . . . . . . . . . . 1 . . . . . . . . . . . . . . . 1 . . . 1 1 Highest Loss Streak 7 | . 1 5 1 . . 1 . . . . . . . . 1 . . . . . . . . . . . . . . . 2 . . . 1 7 Average Slot Usage (%) 89 | . 99 99 99 100 69 87 88 85 90 90 92 92 92 92 85 86 84 84 86 85 83 82 83 83 85 87 89 87 80 80 80 74 84 78 75 73 Engine 6 | . 13 13 10 11 11 10 9 3 . . . . . . 1 . . . . . . . . . . . . . . . . . . . . . Core 2 | . . . . . . . . 3 6 7 7 7 7 7 11 13 11 13 13 6 6 . . . . . . 4 1 . . 4 4 3 . . Reactor 2 | . . . . . . . . . . . . . . . . . . . . 5 6 10 11 11 10 11 10 5 8 10 9 4 3 4 7 7 Treads 15 | . 25 27 32 33 33 33 26 . . . . . . . . . . . . . . . . . . . . . . . . . . . . . Flight 9 | . . . . . . . . 37 38 31 30 30 30 30 20 20 20 20 20 20 18 15 16 16 19 22 20 20 15 15 15 13 13 12 11 11 Device 10 | . 13 14 11 11 10 11 6 6 7 6 7 7 7 7 11 13 13 13 13 13 12 6 5 5 5 5 8 4 9 8 14 13 12 14 11 10 Storage 9 | . 14 14 11 11 11 11 9 7 7 7 7 7 7 7 6 6 6 6 6 6 6 5 5 5 5 5 5 9 5 5 5 4 4 7 8 7 Processor 4 | . . . . . . . 9 11 7 7 7 7 7 7 6 6 6 6 6 6 6 5 5 5 5 5 5 5 5 5 5 5 9 12 15 15 Hackware 1 | . . . . . . . . . . . . . . . . . . . . . . 4 5 5 5 5 11 19 15 15 10 9 7 1 . . Protection 9 | . . . 10 11 2 . 11 10 14 15 15 15 15 15 12 13 13 13 13 13 12 15 16 16 16 16 15 6 10 12 10 10 13 9 13 11 Energy Gun 1 | . 7 1 5 . . . . . . . . . . . . . . . . . . . . . . . . . . . . . . . . . Energy Cannon 4 | . . . 13 21 1 21 10 . . . . . . . 4 . . . . . . . . . . . . . . . . 3 3 4 . . Ballistic Gun 3 | . 20 6 . . . . 6 . . . . . . . . . 5 4 6 5 6 . . . . . . . . . . . . . . . Ballistic Cannon 1 | . . 12 2 . . . . . . . . . . . . . . . . . . 3 5 5 4 4 5 2 5 5 5 4 . . . . Piercing Weapon 3 | . . . . . . . . . 5 11 14 15 15 15 6 6 5 4 6 6 5 7 5 5 7 10 10 6 . . . . 5 . 5 6 Naked Turns . | . . . . . . . . . . . . . . . . . . . . . . . . . . . . . . . . . . . . . Heaviest Build 109 | 12 27 28 54 58 97 101 109 37 21 28 29 24 24 24 49 42 51 51 49 51 58 66 64 64 66 61 64 68 68 67 68 73 80 80 92 80 Greatest Support 81 | 20 40 40 63 60 60 60 63 30 30 38 38 32 38 38 49 49 51 51 51 51 51 66 66 66 66 64 72 72 69 69 69 77 81 81 81 81 Greatest Overweight (x) 12 | 3 . . 1 . 1 1 2 1 . . . . . . . . . . . . 1 . . . 1 . . 1 . . . . . . 12 2 Average Overweight (x) . | . . . . . . 1 1 . . . . . . . . . . . . . . . . . . . . . . . . . . . . . Largest Inventory Capacity 32 | 6 10 10 14 12 32 24 24 28 8 8 8 8 8 8 8 8 10 10 10 10 10 10 10 10 10 10 10 14 14 8 8 8 8 12 12 12 Average Capacity 11 | 6 6 10 11 12 20 24 24 8 8 8 8 8 8 8 8 8 9 10 10 10 10 10 10 10 10 10 10 13 8 8 8 8 8 11 12 11 Most Carried 24 | 6 10 10 12 12 24 21 24 24 8 8 8 8 8 8 8 8 10 10 10 10 10 10 10 10 10 10 10 14 14 8 8 8 8 12 12 12 Average Carried 11 | 5 6 6 10 11 17 20 23 7 7 7 8 8 7 8 7 7 9 9 10 10 9 9 10 10 9 9 9 13 8 8 7 7 7 9 11 11 Final Capacity 24 | 6 10 10 12 12 24 24 24 8 8 8 8 8 8 8 8 8 10 10 10 10 10 10 10 10 10 10 10 14 8 8 8 8 8 12 12 4 Final Carried 24 | 4 10 7 12 12 19 20 24 8 8 8 8 8 8 8 8 8 10 10 10 10 10 10 10 10 10 10 10 14 8 8 8 8 8 12 12 4 Class Distribution -------------------- 49% | Mutant 19% | Scavenger-Mutant 11% | Hauler-Mutant 9% | Sprinter 6% | Hacker-Mutant 3% | Hacker-Sprinter Dominant Class ---------------- Mutant | -10/Materials Scavenger-Mutant | -10/Mines Mutant | -9/Materials Mutant | -9/Mines Hauler-Mutant | -9/Exiles Hauler-Mutant | -8/Mines Hauler-Mutant | -8/Materials Sprinter | -7/Factory Sprinter | -7/Waste Mutant | -7/Factory Mutant | -7/Lower Caves Mutant | -7/Lower Caves Mutant | -7/Data Miner Mutant | -6/Proximity Caves Sprinter | -6/Factory Sprinter | -6/Waste Mutant | -6/Factory Mutant | -6/Lower Caves Mutant | -6/Lower Caves Mutant | -6/Zion Mutant | -5/Proximity Caves Mutant | -5/Factory Mutant | -5/Upper Caves Mutant | -5/Upper Caves Sprinter | -5/Zhirov Sprinter | -4/Proximity Caves Hacker-Sprinter | -4/Factory Hacker-Sprinter | -4/Extension Hacker-Mutant | -4/Cetus Hacker-Mutant | -4/Archives Hacker-Mutant | -4/Hub_04(d) Hacker-Mutant | -3/Research Hacker-Mutant | -3/Quarantine Scavenger-Mutant | -2/Research Scavenger-Mutant | -2/Testing Scavenger-Mutant | -2/Section 7 Resources | -11 -10 -10 -9 -9 -9 -8 -8 -7 -7 -7 -7 -7 -7 -6 -6 -6 -6 -6 -6 -6 -5 -5 -5 -5 -5 -4 -4 -4 -4 -4 -4 -3 -3 -2 -2 -2 ----------- Run | Scr Mat Min Mat Min Exi Min Mat Fac Was Fac Low Low Dat Pro Fac Was Fac Low Low Zio Pro Fac Upp Upp Zhi Pro Fac Ext Cet Arc Hub Res Qua Res Tes Sec Matter Collected 6991 | 239 371 73 721 111 52 129 832 307 70 70 10 15 . . 110 . 445 231 25 51 61 129 . 166 147 137 115 640 149 96 147 154 119 203 559 307 Remotely . | . . . . . . . . . . . . . . . . . . . . . . . . . . . . . . . . . . . . . Salvage Created 8965 | 150 344 61 1888 13 . 48 1539 436 . 322 . . . . 36 . 500 365 . 60 78 184 . 362 317 137 29 307 201 . 68 . 102 173 849 396 Parts 443 | 7 24 3 100 . . 3 83 12 . 22 . . . . . . 13 18 . . 7 10 . 1 6 4 4 14 11 . 5 . 5 3 74 14 Haulers Intercepted 20 | . 2 . 6 . . . 5 2 . 4 . . . . . . 1 . . . . . . . . . . . . . . . . . . . Recyclers Shooed 7 | . . . 1 . . . 1 1 . 1 . . . . 1 . . . . . . . . . . . . . . . . . 1 . . 1 Parts Field Recycled 14 | . . . . . . . . 9 1 . . . . . . . . . . . . . . . . . . . . . . . . . 4 . Retrieved Matter 506 | . . . . . . . . 244 22 . . . . . . . . . . . . . . . . . . . . . . . . . 240 . Parts Self-Destructed 20 | . . . . . . . . . . . . 2 . . . . . 5 7 . . . 2 . 1 3 . . . . . . . . . . Prevented 19 | . . . . . . . . . . . . . . . . . . 11 . . 2 . 5 . . 1 . . . . . . . . . . Kills | -11 -10 -10 -9 -9 -9 -8 -8 -7 -7 -7 -7 -7 -7 -6 -6 -6 -6 -6 -6 -6 -5 -5 -5 -5 -5 -4 -4 -4 -4 -4 -4 -3 -3 -2 -2 -2 ------- Run | Scr Mat Min Mat Min Exi Min Mat Fac Was Fac Low Low Dat Pro Fac Was Fac Low Low Zio Pro Fac Upp Upp Zhi Pro Fac Ext Cet Arc Hub Res Qua Res Tes Sec Combat Hostiles Destroyed 95 | . 9 1 33 1 . 1 21 . . . . . . . . . . 8 . . . . . . . 1 . 3 2 . 1 . . . 11 3 Melee 15 | . . 1 . . . 1 . . . . . . . . . . . . . . . . . . . . . . . . . . . . 11 2 Guns 26 | . 6 . 12 . . . 8 . . . . . . . . . . . . . . . . . . . . . . . . . . . . . Cannons 27 | . . . 16 1 . . 7 . . . . . . . . . . . . . . . . . . . . 3 . . . . . . . . AOE 17 | . 3 . 4 . . . 3 . . . . . . . . . . 6 . . . . . . . . . . . . . . . . . 1 Classes Destroyed 19 | 2 4 1 3 1 . 2 . . . . . . . . . . . 1 . . 2 1 . . . . . 1 . . . . . . . 1 Worker 14 | . . 1 4 . . . 3 . . 1 . . . . . . . . . . . . . . . . . . . . . . . . 5 . Builder 6 | . . . . . . 1 . . . . . . . . . . 1 . . . . . . . . . . 2 . . . . . . 1 1 Tunneler 4 | 3 . . . . . . . . . . . . . . . . . . . . . . . . . . 1 . . . . . . . . . Hauler 20 | . 2 . 6 . . . 5 2 . 4 . . . . . . 1 . . . . . . . . . . . . . . . . . . . Recycler 17 | 1 . 1 . . . . 3 5 . 1 . . . . . . 2 . . . . 1 . . . . . . . . . . 1 1 . 1 Minesweeper 3 | . . . . . . . . . . . . . . . . . . . . . 1 . . . . 2 . . . . . . . . . . Mechanic 1 | . . . 1 . . . . . . . . . . . . . . . . . . . . . . . . . . . . . . . . . Operator 4 | . . . . . . . . . . . . . . . . . . . . . . 1 . . . . . . . . . . . 2 . 1 Drone 1 | . . . . . . . . . . . . . . . . . . . . . . . . . . . . . . . . . . . . 1 Watcher 18 | . 1 . 3 . . . 3 . . 1 . . . . 1 . 2 . . . . 1 . . . . . 3 1 . . . . . 2 . Swarmer 20 | . 5 . 4 . . . 4 . . . . . . . . . . 4 . . . . . . . . . . . . . . . . 3 . Grunt 37 | . 4 . 20 . . . 8 . . . . . . . . . . 3 . . . . . . . 1 . 1 . . . . . . . . Brawler 1 | . . . 1 . . . . . . . . . . . . . . . . . . . . . . . . . . . . . . . . . Duelist 1 | . . . . . . . . . . . . . . . . . . 1 . . . . . . . . . . . . . . . . . . Researcher 2 | . . . . . . . . . . . . . . . . . . . . . 1 . . . . . . . . . . . . . . 1 Sentry 15 | . . . 8 . . . 6 . . . . . . . . . . . . . . . . . . . . . . . 1 . . . . . Demolisher 1 | . . . . 1 . . . . . . . . . . . . . . . . . . . . . . . . . . . . . . . . Hunter 4 | . . . . . . 1 3 . . . . . . . . . . . . . . . . . . . . . . . . . . . . . Programmer 11 | . . . . . . . . . . . . . . . . . . . . . . . . . . . . 2 . . . . . . 7 2 Cetus Guard 2 | . . . . . . . . . . . . . . . . . . . . . . . . . . . . . 2 . . . . . . . Protovariant H 1 | . . . . . . . . . . . . . . . . . . . . . . . . . . . . . . . . . . . 1 . Packrat 5 | . . . . . . . . . . . . . . . . . . . . . . . . 5 . . . . . . . . . . . . Best Kill Streak 6 | 2 3 1 5 1 . 2 6 3 . 2 . . . . 1 . 2 4 . . 1 1 . . . 1 1 3 3 . 1 . 1 1 5 2 Combat Bots Only 6 | . 3 1 4 1 . 1 6 . . . . . . . . . . 4 . . . . . . . 1 . 3 2 . 1 . . . 3 1 Max Kills in Single Turn 3 | 1 2 1 2 1 . 1 3 1 . 1 . . . . 1 . 1 2 . . 1 1 . 1 . 1 1 2 2 . 1 . 1 1 1 1 Gunslinging 1 | . . . 1 . . . . . . . . . . . . . . . . . . . . . . . . . . . . . . . . . Exploded 3 | . 2 . 2 . . . 3 . . . . . . . . . . 2 . . . . . . . . . . . . . . . . . 1 Melee 1 | . . 1 . . . 1 . . . . . . . . . . . . . . . . . . . . . . . . . . . . 1 1 Uniques/NPCs Destroyed 1 | . . 1 . . . . . . . . . . . . . . . . . . . . . . . . . . . . . . . . . . YI-UF0 (-10/Mines) Combat | -11 -10 -10 -9 -9 -9 -8 -8 -7 -7 -7 -7 -7 -7 -6 -6 -6 -6 -6 -6 -6 -5 -5 -5 -5 -5 -4 -4 -4 -4 -4 -4 -3 -3 -2 -2 -2 -------- Run | Scr Mat Min Mat Min Exi Min Mat Fac Was Fac Low Low Dat Pro Fac Was Fac Low Low Zio Pro Fac Upp Upp Zhi Pro Fac Ext Cet Arc Hub Res Qua Res Tes Sec Damage Taken 12119 | . 216 488 1133 266 . 255 878 157 . 63 27 14 47 . 333 . 89 60 31 . 182 107 76 . . 81 258 166 13 217 532 177 131 1141 1494 3487 Core 2695 | . 11 64 51 17 . . 71 17 . . 27 . . . 54 . 8 . . . 15 21 . . . 16 40 9 13 95 47 34 22 91 495 1477 Absorbed by Shields 118 | . . . . . . . . . . . . . . . . . . . . . . . . . . . . 106 12 . . . . . . . Core Remaining (%) 87 | 100 . 70 . . . 83 87 . . . . . . 93 . . . . . . 90 . . . . 96 . . . . 82 . 89 . . . Volleys Fired 453 | 9 34 9 94 3 1 3 68 . . . 1 . . . 6 . 10 21 . . 2 13 3 8 1 11 18 33 6 1 16 18 25 13 . 26 Largest 2 | 2 2 2 2 2 2 2 2 . . . 1 . . . 1 . 1 1 . . 1 1 1 1 1 1 1 1 1 1 1 1 1 1 . 1 Hottest 136 | 60 90 90 136 126 136 126 136 . . . 39 . . . 90 . 30 50 . . 50 57 57 57 57 57 57 66 50 50 61 61 113 113 . 113 Shots Fired 665 | 18 65 11 183 8 3 6 139 . . . 1 . . . 6 . 10 21 . . 2 13 3 8 1 11 18 33 6 1 16 18 25 13 . 26 Gun 272 | 18 62 5 85 . . . 84 . . . . . . . . . 10 8 . . . . . . . . . . . . . . . . . . Cannon 334 | . . 6 92 7 3 6 55 . . . . . . . 6 . . . . . . 12 3 3 1 3 18 25 . . 16 18 25 13 . 22 Launcher 53 | . 3 . 6 1 . . . . . . 1 . . . . . . 13 . . 2 . . . . 8 . 8 6 1 . . . . . 4 Special 6 | . . . . . . . . . . . . . . . . . . . . . . 1 . 5 . . . . . . . . . . . . Kinetic 253 | 9 32 6 1 . . . 84 . . . . . . . . . 10 8 . . . 12 3 3 1 3 18 25 . . 16 18 4 . . . Thermal 271 | 9 26 2 162 1 3 . 6 . . . . . . . 6 . . . . . . . . . . . . . . . . . 21 13 . 22 Explosive 10 | . 3 . 6 1 . . . . . . . . . . . . . . . . . . . . . . . . . . . . . . . . Electromagnetic 125 | . 4 3 14 6 . 6 49 . . . 1 . . . . . . 13 . . 2 . . . . 8 . 8 6 1 . . . . . 4 Robot Hit Streak 25 | 2 7 1 25 6 . 4 22 . . . . . . . . . 6 7 . . . 1 . 4 5 . . 11 . . . . . . . . Robot Miss Streak 6 | 2 6 2 3 2 . 2 3 . . . . . . . . . 1 3 . . . . . 1 . . . 2 . . . . . . . . Penetration Max 2 | . . . . . . . . . . . . . . . . . . . . . . . . . . . . 2 . . . . . . . . Secondary Targets 2 | . . . 2 . . . . . . . . . . . . . . . . . . . . . . . . . . . . . . . . . Max Gunslinging Chain 1 | . . . 1 . . . . . . . . . . . . . . . . . . . . . . . . . . . . . . . . . Shots Hit Robots 458 | 8 32 2 127 6 . 4 98 18 . 19 . . 2 . 3 . 17 2 . 1 2 8 . 14 4 7 1 20 . . . . 3 6 35 19 Core Hits 264 | 5 21 4 61 3 . 1 50 6 . 8 . . . . 1 . 8 15 . 1 2 3 . 5 4 4 1 18 7 . 1 . 1 1 18 15 Critical Hits 29 | . . . 9 . . . . . . 1 . . . . . . 1 . . . 1 . . . 1 1 . 8 . . . . . . 6 1 Critical Kills 13 | . . . 5 . . . . . . . . . . . . . . . . . 1 . . . . 1 . 3 . . . . . . 2 1 Critical Parts Destroyed 14 | . . . 3 . . . . . . 1 . . . . . . 1 . . . . . . . . . . 5 . . . . . . 4 . Melee Attacks 322 | . . . 1 . . . 4 23 . 46 2 . 7 . 18 . 16 2 . 1 3 19 . 12 6 11 2 17 . . . . 16 9 63 44 Impact 10 | . . . . . . . . 7 . . . . . . . . . . . . . . . . . . . . . . . . . . 3 . Slashing 45 | . . . 1 . . . 4 12 . . . . . . . . . . . . . . . . . . . . . . . . 4 9 15 . Piercing 267 | . . . . . . . . 4 . 46 2 . 7 . 18 . 16 2 . 1 3 19 . 12 6 11 2 17 . . . . 12 . 45 44 Sneak Attacks 54 | . . . . . . . 1 6 . 8 . . 2 . 2 . 3 . . . 2 4 . 4 . 2 1 2 . . . . 2 2 7 6 Combat Hostiles . | . . . . . . . . . . . . . . . . . . . . . . . . . . . . . . . . . . . . . Follow-up Attacks 11 | . . . . . . . . 1 . 2 . . 1 . . . . . . . . . . . . . . . . . . . . . . 7 Damage Inflicted 22543 | 102 547 42 3156 151 . 279 2524 1113 . 1180 9 . 207 . 443 . 833 575 . 128 235 674 . 681 350 604 133 1347 405 . 235 . 378 988 3342 1882 Guns 2865 | 102 364 11 1130 . . . 1136 . . . . . . . . . 122 . . . . . . . . . . . . . . . . . . . Cannons 3019 | . . . 1386 108 . 107 1022 . . . . . . . . . . . . . . . . . 34 . . 317 . . 45 . . . . . Explosions 3153 | . 155 . 442 . . 95 221 . . . 9 . . . 208 . . 575 . . . . . . . 108 . 372 405 . 190 . . . . 373 Melee 13048 | . . . . . . . 81 1113 . 1180 . . 207 . 235 . 711 . . 128 235 674 . 681 316 496 133 641 . . . . 378 988 3342 1509 Ramming 458 | . 28 31 198 43 . 77 64 . . . . . . . . . . . . . . . . . . . . 17 . . . . . . . . Kinetic 1798 | 15 113 . 16 . . . 1136 . . . . . . . . . 122 . . . . . . . 34 . . 317 . . 45 . . . . . Thermal 3245 | 87 241 . 2142 . . 95 168 . . . . . . . 208 . . 117 . . . . . . . . . . 101 . . . . . . 86 Explosive 535 | . 125 . 410 . . . . . . . . . . . . . . . . . . . . . . . . . . . . . . . . . Electromagnetic 3459 | . 40 11 390 108 . 107 1075 . . . 9 . . . . . . 458 . . . . . . . 108 . 372 304 . 190 . . . . 287 Impact 316 | . . . . . . . . 316 . . . . . . . . . . . . . . . . . . . . . . . . . . . . Slashing 2752 | . . . . . . . 81 524 . . . . . . . . . . . . . . . . . . . . . . . . 113 988 1046 . Piercing 9980 | . . . . . . . . 273 . 1180 . . 207 . 235 . 711 . . 128 235 674 . 681 316 496 133 641 . . . . 265 . 2296 1509 Highest Corruption 7 | . . . 6 6 6 6 7 1 1 1 1 1 1 1 . . 1 1 1 1 2 . . . . . . 1 1 1 3 . 1 . 3 4 Average Corruption 3 | . . . 5 6 6 6 6 1 1 1 1 1 1 1 . . 1 1 1 1 2 . . . . . . 1 1 1 1 . 1 . 2 3 Corruption Purged . | . . . . . . . . . . . . . . . . . . . . . . . . . . . . . . . . . . . . . Effects 267 | . . . 75 18 37 9 75 . 1 3 6 . 1 1 . . . 2 1 . 2 . . . . . . 5 1 . 1 . 3 . 9 17 Message Errors 79 | . . . 24 6 10 . 16 . . 3 3 . 1 1 . . . 1 . . 2 . . . . . . 1 1 . . . 1 . 4 5 Matter Fused 55 | . . . 21 5 8 2 15 . . . . . . . . . . . . . . . . . . . . . . . . . . . 1 3 Heat Flow Errors 24 | . . . 7 2 1 2 10 . . . . . . . . . . . . . . . . . . . . . . . . . . . 1 1 Energy Discharges 44 | . . . 8 3 8 3 13 . . . 2 . . . . . . . . . . . . . . . . 2 . . . . 1 . . 4 Parts Rejected 2 | . . . 2 . . . . . . . . . . . . . . . . . . . . . . . . . . . . . . . . . Data Loss (minor) 27 | . . . 5 . 5 1 9 . 1 . . . . . . . . 1 1 . . . . . . . . 1 . . . . . . 2 1 Data Loss (major) 3 | . . . . . 3 . . . . . . . . . . . . . . . . . . . . . . . . . . . . . . . Misfires 12 | . . . 3 2 1 . 6 . . . . . . . . . . . . . . . . . . . . . . . . . . . . . Targeting Errors 19 | . . . 4 . 1 1 5 . . . 1 . . . . . . . . . . . . . . . . 1 . . 1 . 1 . 1 3 Weapon Failures 2 | . . . 1 . . . 1 . . . . . . . . . . . . . . . . . . . . . . . . . . . . . Overload Shots . | . . . . . . . . . . . . . . . . . . . . . . . . . . . . . . . . . . . . . Overflow Damage 3423 | . 20 . 26 4 . 13 41 196 . 181 . . 87 . 257 . 100 11 . . . . . 311 . 164 . 160 . . . . 193 735 419 505 Projectiles 30 | . . . 26 4 . . . . . . . . . . . . . . . . . . . . . . . . . . . . . . . . Explosions 162 | . 20 . . . . 8 . . . . . . . . 123 . . 11 . . . . . . . . . . . . . . . . . . Melee 3231 | . . . . . . 5 41 196 . 181 . . 87 . 134 . 100 . . . . . . 311 . 164 . 160 . . . . 193 735 419 505 Knockbacks 8 | . . . 2 . . . 1 2 . . . . . . . . . . . . . . . . . . . 3 . . . . . . . . Impact 5 | . . . 2 . . . 1 2 . . . . . . . . . . . . . . . . . . . . . . . . . . . . Kinetic 3 | . . . . . . . . . . . . . . . . . . . . . . . . . . . . 3 . . . . . . . . Secondary . | . . . . . . . . . . . . . . . . . . . . . . . . . . . . . . . . . . . . . Self-Inflicted Damage 334 | . 28 . 27 . . 56 78 . . . . . . . . . . 19 . . . . . . . . . 8 . . 95 . . . . 23 Shots 12 | . 1 . 1 . . 1 2 . . . . . . . . . . 2 . . . . . . . . . . . . 1 . . . . 4 Rammed 52 | . 6 4 29 2 . 4 6 . . . . . . . . . . . . . . . . . . . . 1 . . . . . . . . Targets Rammed 59 | . 6 7 30 2 . 5 8 . . . . . . . . . . . . . . . . . . . . 1 . . . . . . . . Kicked . | . . . . . . . . . . . . . . . . . . . . . . . . . . . . . . . . . . . . . Crushed 7 | . . 3 1 . . 1 2 . . . . . . . . . . . . . . . . . . . . . . . . . . . . . Highest Temperature 959 | 20 138 . 390 252 209 247 280 2 . . . . . . 115 . . 107 . . 315 142 90 84 32 78 116 214 48 25 227 112 18 199 959 143 Average Temperature 72 | 14 51 . 87 77 72 102 62 1 . . . . . . 41 . . 39 . . 154 55 50 47 21 37 43 54 18 9 94 38 8 83 394 47 Received Heat Transfer 1195 | . 60 . 471 . . . 270 18 . . . . 6 . 30 . . . . . . 27 . . . . 21 22 . 27 90 27 36 63 9 18 Effects 13 | . . . 6 . . . . . . . . . . . . . . . . . . . . . . . . . . . . . . . 7 . Shutdowns 2 | . . . . . . . . . . . . . . . . . . . . . . . . . . . . . . . . . . . 2 . Energy Bleed 3 | . . . 2 . . . . . . . . . . . . . . . . . . . . . . . . . . . . . . . 1 . Interference 3 | . . . 3 . . . . . . . . . . . . . . . . . . . . . . . . . . . . . . . . . Matter Decay 2 | . . . . . . . . . . . . . . . . . . . . . . . . . . . . . . . . . . . 2 . Short Circuit 1 | . . . 1 . . . . . . . . . . . . . . . . . . . . . . . . . . . . . . . . . Damage (core) 2 | . . . . . . . . . . . . . . . . . . . . . . . . . . . . . . . . . . . 2 . Siege Activations . | . . . . . . . . . . . . . . . . . . . . . . . . . . . . . . . . . . . . . Robots Corrupted 10 | . . . . . . . 3 . . . . . . . . . . 2 . . . . . . . 1 . . 2 . 1 . . . . 1 Combat Hostiles 9 | . . . . . . . 3 . . . . . . . . . . 2 . . . . . . . 1 . . 2 . 1 . . . . . Parts Fried 18 | . . . 2 . . . 8 . . . . . . . . . . 3 . . . . . . . 2 . . 1 . . . . . 1 1 Impact Corruptions 3 | . . . . . . 1 . 2 . . . . . . . . . . . . . . . . . . . . . . . . . . . . Robots Melted 1 | . . . 1 . . . . . . . . . . . . . . . . . . . . . . . . . . . . . . . . . Combat Hostiles 1 | . . . 1 . . . . . . . . . . . . . . . . . . . . . . . . . . . . . . . . . Parts Melted 6 | 1 1 . 4 . . . . . . . . . . . . . . . . . . . . . . . . . . . . . . . . . Heat Transferred 5882 | 200 692 . 4231 . . 100 285 . . . . . . . 100 . . 100 . . . . . . . . . . 50 . . . . . . 124 Parts Sabotaged . | . . . . . . . . . . . . . . . . . . . . . . . . . . . . . . . . . . . . . Parts Stolen . | . . . . . . . . . . . . . . . . . . . . . . . . . . . . . . . . . . . . . Parts Stripped . | . . . . . . . . . . . . . . . . . . . . . . . . . . . . . . . . . . . . . Power Chain Reactions 9 | . 1 . 1 . . 1 2 . . . . . . . . . . 2 . . . . . . . . . . 1 . . . . . . 1 Missiles Intercepted . | . . . . . . . . . . . . . . . . . . . . . . . . . . . . . . . . . . . . . Alert | -11 -10 -10 -9 -9 -9 -8 -8 -7 -7 -7 -7 -7 -7 -6 -6 -6 -6 -6 -6 -6 -5 -5 -5 -5 -5 -4 -4 -4 -4 -4 -4 -3 -3 -2 -2 -2 ------- Run | Scr Mat Min Mat Min Exi Min Mat Fac Was Fac Low Low Dat Pro Fac Was Fac Low Low Zio Pro Fac Upp Upp Zhi Pro Fac Ext Cet Arc Hub Res Qua Res Tes Sec Peak Influence 904 | 20 261 225 904 366 . 39 300 300 105 588 . . . . 666 278 306 . . . . 202 . . . . 263 308 237 299 447 466 431 594 480 549 Initial 346 | . 13 87 43 346 . . 14 114 105 73 . . . . . 233 194 . . . . 2 . . . . 94 128 84 94 104 234 261 219 342 162 Average 207 | 10 69 82 364 264 . 7 139 161 105 278 . . . . 163 262 201 . . . . 54 . . . . 142 175 215 201 174 288 330 330 277 263 Maximum Alert Level 3 | . 1 1 3 1 . . 1 1 . 2 . . . . 2 1 1 . . . . 1 . . . . 1 1 1 1 2 2 2 2 2 2 Low Security (%) 55 | 100 80 72 34 46 . 100 74 71 100 47 . . . . 80 . 41 . . . . 97 . . . . 83 58 14 47 65 . . . 21 35 Level 1 32 | . 19 27 28 53 . . 25 28 . 7 . . . . . 100 58 . . . . 2 . . . . 16 41 85 52 23 84 92 74 69 47 Level 2 7 | . . . 15 . . . . . . 44 . . . . 19 . . . . . . . . . . . . . . . 11 15 7 25 8 16 Level 3 4 | . . . 21 . . . . . . . . . . . . . . . . . . . . . . . . . . . . . . . . . Level 4 . | . . . . . . . . . . . . . . . . . . . . . . . . . . . . . . . . . . . . . Level 5 . | . . . . . . . . . . . . . . . . . . . . . . . . . . . . . . . . . . . . . High Security . | . . . . . . . . . . . . . . . . . . . . . . . . . . . . . . . . . . . . . Max Security . | . . . . . . . . . . . . . . . . . . . . . . . . . . . . . . . . . . . . . Squads Dispatched 37 | . 1 . 5 . . . 1 1 . 3 . . . . 4 . 2 . . . . 2 . . . . 2 1 . . 2 . 2 . 3 8 Investigation 7 | . 1 . . . . . 1 . . 1 . . . . 1 . . . . . . 1 . . . . 1 . . . 1 . . . . . Extermination 10 | . . . . . . . . . . . . . . . 2 . 1 . . . . . . . . . 1 . . . . . 2 . 3 1 Reinforcement 12 | . . . 3 . . . . 1 . 2 . . . . . . 1 . . . . 1 . . . . . 1 . . 1 . . . . 2 Assault 5 | . . . 2 . . . . . . . . . . . 1 . . . . . . . . . . . . . . . . . . . . 2 Garrison . | . . . . . . . . . . . . . . . . . . . . . . . . . . . . . . . . . . . . . Intercept 3 | . . . . . . . . . . . . . . . . . . . . . . . . . . . . . . . . . . . . 3 Construction Impeded . | . . . . . . . . . . . . . . . . . . . . . . . . . . . . . . . . . . . . . Haulers Reinforced 2 | . . . . . . . . . . 1 . . . . . . . . . . . 1 . . . . . . . . . . . . . . Stealth | -11 -10 -10 -9 -9 -9 -8 -8 -7 -7 -7 -7 -7 -7 -6 -6 -6 -6 -6 -6 -6 -5 -5 -5 -5 -5 -4 -4 -4 -4 -4 -4 -3 -3 -2 -2 -2 --------- Run | Scr Mat Min Mat Min Exi Min Mat Fac Was Fac Low Low Dat Pro Fac Was Fac Low Low Zio Pro Fac Upp Upp Zhi Pro Fac Ext Cet Arc Hub Res Qua Res Tes Sec Distress Signals 20 | . 2 . 5 . . . 4 . . 1 . . . . . . . . . . . 1 . . . . . 2 1 . . . . 2 1 1 Communications Jammed 45 | . . . . . . . . . . . . . . . . . . . . . . . . . . . . . . . 7 . 7 16 5 10 Distress Signals 45 | . . . . . . . . . . . . . . . . . . . . . . . . . . . . . . . 7 . 7 16 5 10 Times Spotted 399 | . 22 1 68 2 8 1 40 12 . 16 7 6 4 . 9 5 6 9 6 . 3 11 3 . . 6 6 12 5 4 16 15 19 24 20 33 Peak Tracking Total 17 | . 3 1 6 2 9 1 7 5 . 5 4 4 4 . 6 5 3 4 3 . 3 6 3 . . 5 4 6 5 4 7 10 7 14 6 17 Tactical Retreats 72 | . 4 . 9 . . . 4 4 . 4 2 2 . . 4 . 1 3 2 . . 4 . . . 2 2 2 . . 2 2 3 5 1 10 Traps | -11 -10 -10 -9 -9 -9 -8 -8 -7 -7 -7 -7 -7 -7 -6 -6 -6 -6 -6 -6 -6 -5 -5 -5 -5 -5 -4 -4 -4 -4 -4 -4 -3 -3 -2 -2 -2 ------- Run | Scr Mat Min Mat Min Exi Min Mat Fac Was Fac Low Low Dat Pro Fac Was Fac Low Low Zio Pro Fac Upp Upp Zhi Pro Fac Ext Cet Arc Hub Res Qua Res Tes Sec Traps Triggered 20 | . . . 2 . . . 1 3 . 6 . . . . 1 . 3 . . . 1 . . . . . 1 2 . . . . . . . . Indirectly . | . . . . . . . . . . . . . . . . . . . . . . . . . . . . . . . . . . . . . Trap Hack Attempts . | . . . . . . . . . . . . . . . . . . . . . . . . . . . . . . . . . . . . . Triggered . | . . . . . . . . . . . . . . . . . . . . . . . . . . . . . . . . . . . . . Disarmed . | . . . . . . . . . . . . . . . . . . . . . . . . . . . . . . . . . . . . . Reprogrammed 16 | . 1 . . . . . . . . . . . . . . . . . . . . 6 . . . . . 9 . . . . . . . . Reused 5 | . 1 . . . . . . . . . . . . . . . . . . . . 2 . . . . . 2 . . . . . . . . Traps Extracted . | . . . . . . . . . . . . . . . . . . . . . . . . . . . . . . . . . . . . . Installed 3 | . . . . . . . . . . . 2 . . . . . . . . . 1 . . . . . . . . . . . . . . . Triggered 6 | . 1 . . . . . . . . . . . . . . . . . . . . 2 1 . . . . 2 . . . . . . . . Machines | -11 -10 -10 -9 -9 -9 -8 -8 -7 -7 -7 -7 -7 -7 -6 -6 -6 -6 -6 -6 -6 -5 -5 -5 -5 -5 -4 -4 -4 -4 -4 -4 -3 -3 -2 -2 -2 ---------- Run | Scr Mat Min Mat Min Exi Min Mat Fac Was Fac Low Low Dat Pro Fac Was Fac Low Low Zio Pro Fac Upp Upp Zhi Pro Fac Ext Cet Arc Hub Res Qua Res Tes Sec Machines Disabled 51 | . 1 15 1 . 1 . 4 1 . . . . 1 . 4 . . . . . . . . . . . . 3 . . 3 . 6 1 3 7 Max in Single Turn 15 | . 1 15 1 . 1 . 1 1 . . . . 1 . 4 . . . . . . . . . . . . 1 . . 3 . 1 1 1 1 Garrison Access 6 | . . . . . . . . 2 . 1 . . . . . . . . . . . 1 . . . . . . . . . . 1 . 1 . Network Hub 1 | . . . . . . . . . . . . . . . . . . . . . . . . . . . . . . . 1 . . . . . Energy Cycler 1 | . . . . . . . . . . . . . . . . . . . . . . . . . . . . 1 . . . . . . . . Machines Sabotaged . | . . . . . . . . . . . . . . . . . . . . . . . . . . . . . . . . . . . . . Garrisons Compromised . | . . . . . . . . . . . . . . . . . . . . . . . . . . . . . . . . . . . . . Overloaded Fab Kills . | . . . . . . . . . . . . . . . . . . . . . . . . . . . . . . . . . . . . . Fab Network Shutdowns 2 | . . . . . . . . . . 1 . . . . 1 . . . . . . . . . . . . . . . . . . . . . Hacking | -11 -10 -10 -9 -9 -9 -8 -8 -7 -7 -7 -7 -7 -7 -6 -6 -6 -6 -6 -6 -6 -5 -5 -5 -5 -5 -4 -4 -4 -4 -4 -4 -3 -3 -2 -2 -2 --------- Run | Scr Mat Min Mat Min Exi Min Mat Fac Was Fac Low Low Dat Pro Fac Was Fac Low Low Zio Pro Fac Upp Upp Zhi Pro Fac Ext Cet Arc Hub Res Qua Res Tes Sec Machines Accessed 177 | . 8 . 12 1 1 . 13 10 . 22 . . 4 . 12 . 7 . . . . 18 . . 9 . 2 9 3 . 4 3 13 7 10 9 Terminals 106 | . 6 . 8 1 . . 10 3 . 14 . . . . 7 . 3 . . . . 11 . . . . 1 8 3 . 4 . 9 6 5 7 Fabricators 15 | . . . . . . . . 2 . 3 . . . . 2 . 1 . . . . 4 . . . . 1 . . . . . . 1 1 . Repair Stations 19 | . 1 . 2 . . . 2 2 . 1 . . . . 1 . 3 . . . . 1 . . . . . . . . . 2 1 . 2 1 Recycling Units 2 | . 1 . . . . . . . . . . . . . . . . . . . . . . . . . . 1 . . . . . . . . Scanalyzers 12 | . . . 2 . . . 1 . . 3 . . . . 1 . . . . . . . . . . . . . . . . 1 2 . 1 1 Garrison Access 9 | . . . . . . . . 3 . 1 . . . . 1 . . . . . . 2 . . . . . . . . . . 1 . 1 . Total Hacks 565 | . 32 . 51 1 1 . 37 18 . 50 . . 28 . 29 . 15 . . . . 57 . . 48 . 8 30 6 . 11 11 41 20 41 30 Successful 310 | . 20 . 28 . 1 . 21 9 . 22 . . 28 . 15 . 6 . . . . 23 . . 48 . 5 24 4 . 6 5 17 3 15 10 Failed 253 | . 11 . 23 1 . . 16 9 . 28 . . . . 14 . 9 . . . . 34 . . . . 3 5 2 . 5 6 24 17 26 20 Catastrophic 49 | . . . 4 1 . . 4 3 . 3 . . . . . . 3 . . . . 10 . . . . . . . . . . 4 6 5 6 Database Lockouts 2 | . 1 . . . . . . . . . . . . . . . . . . . . . . . . . . 1 . . . . . . . . Manual 194 | . 25 . 13 1 1 . 11 5 . 10 . . . . 14 . 4 . . . . 23 . . . . 5 17 2 . 6 . 21 12 8 16 Terminals 341 | . 28 . 27 1 . . 26 7 . 37 . . . . 19 . 5 . . . . 44 . . . . 4 27 6 . 11 . 34 13 24 28 Fabricators 40 | . . . . . . . . 4 . 5 . . . . 5 . 2 . . . . 9 . . . . 4 . . . . . . 7 4 . Repair Stations 58 | . 2 . 15 . . . 8 4 . 2 . . . . 2 . 8 . . . . 2 . . . . . . . . . 3 3 . 8 1 Recycling Units 5 | . 2 . . . . . . . . . . . . . . . . . . . . . . . . . . 3 . . . . . . . . Scanalyzers 33 | . . . 9 . . . 3 . . 5 . . . . 2 . . . . . . . . . . . . . . . . 8 3 . 2 1 Garrison Access 11 | . . . . . . . . 3 . 1 . . . . 1 . . . . . . 2 . . . . . . . . . . 1 . 3 . Terminal Hacks 187 | . 10 . 5 . 1 . 10 1 . 12 . . 28 . 6 . . . . . . 12 . . 48 . 2 17 4 . 6 . 9 1 9 6 Record 55 | . . . . . . . . 1 . 1 . . 11 . . . . . . . . . . . 36 . 1 . 3 . 1 . 1 . . . Part Schematic 14 | . . . . . . . . . . 1 . . 6 . . . . . . . . 1 . . 4 . . . . . . . 2 . . . Robot Schematic 8 | . . . . . . . . . . . . . 8 . . . . . . . . . . . . . . . . . . . . . . . Robot Analysis 9 | . 2 . . . . . . . . 2 . . . . . . . . . . . . . . 4 . . 1 . . . . . . . . Prototype ID Bank 13 | . 1 . 2 . . . 1 . . 1 . . 3 . . . . . . . . 1 . . 4 . . . . . . . . . . . Open Door 7 | . . . . . . . . . . . . . . . . . . . . . . . . . . . . 5 1 . . . . . . 1 Branch Access Points 8 | . . . . . . . 2 . . 1 . . . . 1 . . . . . . 1 . . . . . . . . 1 . 1 . 1 . Terminal Index 12 | . 1 . 1 . . . 1 . . 1 . . . . . . . . . . . 1 . . . . 1 1 . . . . 1 1 2 1 Fabricator Index 2 | . . . . . . . . . . . . . . . 1 . . . . . . 1 . . . . . . . . . . . . . . Scanalyzer Index 1 | . . . . . . . . . . . . . . . 1 . . . . . . . . . . . . . . . . . . . . . Alert Level 3 | . . . . . . . 2 . . . . . . . . . . . . . . . . . . . . . . . . . . . 1 . Unreport Threat 21 | . . . 1 . . . 3 . . 2 . . . . . . . . . . . 2 . . . . . 6 . . 3 . 1 . 2 1 Locate Traps 9 | . 2 . . . . . . . . 2 . . . . 2 . . . . . . 1 . . . . . . . . . . 1 . 1 . Reprogram Traps 4 | . 1 . . . . . . . . . . . . . . . . . . . . 1 . . . . . 2 . . . . . . . . Maintenance Status 2 | . . . . . . . . . . . . . . . . . . . . . . . . . . . . . . . . . 1 . 1 . Security Status 1 | . . . . . . . . . . . . . . . . . . . . . . . . . . . . 1 . . . . . . . . Recall Investigation 1 | . . . . . . . 1 . . . . . . . . . . . . . . . . . . . . . . . . . . . . . Recall Extermination 1 | . . . . . . . . . . . . . . . . . . . . . . . . . . . . . . . . . 1 . . . Recall Reinforcements 2 | . . . . . . . . . . . . . . . . . . . . . . 1 . . . . . . . . . . . . . 1 Hauler Manifests 2 | . 1 . 1 . . . . . . . . . . . . . . . . . . . . . . . . . . . . . . . . . Zone Layout 11 | . 2 . . . . . . . . 1 . . . . 1 . . . . . . 2 . . . . . 1 . . 1 . . . 1 2 EX-Prototype ID Bank 1 | . . . . . 1 . . . . . . . . . . . . . . . . . . . . . . . . . . . . . . . Fabricator Hacks 17 | . . . . . . . . 2 . 3 . . . . 2 . 1 . . . . 4 . . . . 2 . . . . . . 2 1 . Load Schematic 10 | . . . . . . . . 1 . 1 . . . . 1 . 1 . . . . 3 . . . . 1 . . . . . . 1 1 . Build 7 | . . . . . . . . 1 . 2 . . . . 1 . . . . . . 1 . . . . 1 . . . . . . 1 . . Repair Station Hacks 40 | . 2 . 13 . . . 7 3 . 2 . . . . 2 . 5 . . . . 2 . . . . . . . . . . 2 . 2 . Scan Component 23 | . 1 . 7 . . . 4 2 . 1 . . . . 1 . 3 . . . . 1 . . . . . . . . . . 1 . 2 . Repair 17 | . 1 . 6 . . . 3 1 . 1 . . . . 1 . 2 . . . . 1 . . . . . . . . . . 1 . . . Recycling Unit Hacks . | . . . . . . . . . . . . . . . . . . . . . . . . . . . . . . . . . . . . . Scanalyzer 20 | . . . 8 . . . 1 . . 2 . . . . 1 . . . . . . . . . . . . . . . . 5 2 . 1 . Insert Component 13 | . . . 4 . . . 1 . . 1 . . . . 1 . . . . . . . . . . . . . . . . 3 2 . 1 . Analyze 7 | . . . 4 . . . . . . 1 . . . . . . . . . . . . . . . . . . . . . 2 . . . . Garrison Access Hacks 6 | . . . . . . . . 2 . 1 . . . . . . . . . . . 1 . . . . . . . . . . 1 . 1 . Seal Access 6 | . . . . . . . . 2 . 1 . . . . . . . . . . . 1 . . . . . . . . . . 1 . 1 . Unauthorized Hacks 40 | . 8 . 2 . . . 3 1 . 2 . . . . 4 . . . . . . 4 . . . . 1 7 . . . . 3 . 1 4 Terminals 32 | . 6 . 2 . . . 3 . . 2 . . . . 3 . . . . . . 4 . . . . . 4 . . . . 3 . 1 4 Track 10 | . 2 . 2 . . . 2 . . . . . . . . . . . . . . . . . . . . . . . . . 2 . . 2 Assimilate 7 | . 1 . . . . . . . . 1 . . . . . . . . . . . 1 . . . . . 2 . . . . 1 . . 1 Botnet 9 | . 1 . . . . . 1 . . 1 . . . . 3 . . . . . . 2 . . . . . . . . . . . . 1 . Disrupt 5 | . 1 . . . . . . . . . . . . . . . . . . . . 1 . . . . . 2 . . . . . . . 1 Operators 1 | . 1 . . . . . . . . . . . . . . . . . . . . . . . . . . . . . . . . . . . Fabricators 3 | . . . . . . . . 1 . . . . . . 1 . . . . . . . . . . . 1 . . . . . . . . . Prioritize 1 | . . . . . . . . . . . . . . . . . . . . . . . . . . . 1 . . . . . . . . . Haulers 1 | . . . . . . . . 1 . . . . . . . . . . . . . . . . . . . . . . . . . . . . Download 1 | . . . . . . . . . . . . . . . 1 . . . . . . . . . . . . . . . . . . . . . Repair Stations . | . . . . . . . . . . . . . . . . . . . . . . . . . . . . . . . . . . . . . Recycling Units 5 | . 2 . . . . . . . . . . . . . . . . . . . . . . . . . . 3 . . . . . . . . Reject 1 | . . . . . . . . . . . . . . . . . . . . . . . . . . . . 1 . . . . . . . . Recyclers 2 | . 1 . . . . . . . . . . . . . . . . . . . . . . . . . . 1 . . . . . . . . Mask 1 | . . . . . . . . . . . . . . . . . . . . . . . . . . . . 1 . . . . . . . . Tunnel 1 | . 1 . . . . . . . . . . . . . . . . . . . . . . . . . . . . . . . . . . . Scanalyzers . | . . . . . . . . . . . . . . . . . . . . . . . . . . . . . . . . . . . . . Garrison Access . | . . . . . . . . . . . . . . . . . . . . . . . . . . . . . . . . . . . . . Data Cores Recovered 2 | . . . . . . . . . . . . . . . . . . . . . . 1 . . . . . . . . . . . 1 . . Used 1 | . . . . . . . . . . . . . . . . . . . . . . . . . . . . . . . . . . 1 . . Hacking Detections 142 | . 7 . 11 1 . . 13 8 . 20 . . . . 12 . 6 . . . . 16 . . . . 2 2 3 . 4 3 10 7 9 8 Full Trace Events 2 | . . . . . . . . . . 1 . . . . . . . . . . . 1 . . . . . . . . . . . . . . Feedback Events . | . . . . . . . . . . . . . . . . . . . . . . . . . . . . . . . . . . . . . Feedback Blocked . | . . . . . . . . . . . . . . . . . . . . . . . . . . . . . . . . . . . . . Robot Schematics Acquired 8 | . . . . . . . . . . . . . 8 . . . . . . . . . . . . . . . . . . . . . . . Robots Built 3 | . . . . . . . . . . . . . . . . . . . . . . 3 . . . . . . . . . . . . . . Matter 285 | . . . . . . . . . . . . . . . . . . . . . . 285 . . . . . . . . . . . . . . Time 76 | . . . . . . . . . . . . . . . . . . . . . . 76 . . . . . . . . . . . . . . Total Robot Build Rating 15 | . . . . . . . . . . . . . . . . . . . . . . 15 . . . . . . . . . . . . . . Part Schematics Acquired 22 | . . . 4 . . . . . . 2 . . 6 . 1 . . . . . . 1 . . 4 . . . . . . 2 2 . . . Parts Built 6 | . . . . . . . . 1 . 2 . . . . 1 . . . . . . . . . . . 1 . . . . . . 1 . . Matter 1045 | . . . . . . . . 102 . 234 . . . . 285 . . . . . . . . . . . 212 . . . . . . 212 . . Time 314 | . . . . . . . . 17 . 39 . . . . 152 . . . . . . . . . . . 53 . . . . . . 53 . . Total Part Build Rating 32 | . . . . . . . . 1 . 14 . . . . 5 . . . . . . . . . . . 6 . . . . . . 6 . . Parts Repaired 17 | . 1 . 6 . . . 3 1 . 1 . . . . 1 . 2 . . . . 1 . . . . . . . . . . 1 . . . Time 695 | . 26 . 243 . . . 120 76 . 18 . . . . 19 . 120 . . . . 19 . . . . . . . . . . 54 . . . Parts Recycled . | . . . . . . . . . . . . . . . . . . . . . . . . . . . . . . . . . . . . . Recycled Matter . | . . . . . . . . . . . . . . . . . . . . . . . . . . . . . . . . . . . . . Retrieved Matter . | . . . . . . . . . . . . . . . . . . . . . . . . . . . . . . . . . . . . . Retrieved Components . | . . . . . . . . . . . . . . . . . . . . . . . . . . . . . . . . . . . . . Parts Scanalyzed 8 | . . . 4 . . . 1 . . 1 . . . . . . . . . . . . . . . . . . . . . 2 . . . . Part Schematics Acquired 7 | . . . 4 . . . . . . 1 . . . . . . . . . . . . . . . . . . . . . 2 . . . . Parts Damaged . | . . . . . . . . . . . . . . . . . . . . . . . . . . . . . . . . . . . . . Bothacking | -11 -10 -10 -9 -9 -9 -8 -8 -7 -7 -7 -7 -7 -7 -6 -6 -6 -6 -6 -6 -6 -5 -5 -5 -5 -5 -4 -4 -4 -4 -4 -4 -3 -3 -2 -2 -2 ------------ Run | Scr Mat Min Mat Min Exi Min Mat Fac Was Fac Low Low Dat Pro Fac Was Fac Low Low Zio Pro Fac Upp Upp Zhi Pro Fac Ext Cet Arc Hub Res Qua Res Tes Sec Used RIF Installer . | . . . . . . . . . . . . . . . . . . . . . . . . . . . . . . . . . . . . . Robots Hacked . | . . . . . . . . . . . . . . . . . . . . . . . . . . . . . . . . . . . . . Non-combat . | . . . . . . . . . . . . . . . . . . . . . . . . . . . . . . . . . . . . . Combat . | . . . . . . . . . . . . . . . . . . . . . . . . . . . . . . . . . . . . . Robot Hacks Applied . | . . . . . . . . . . . . . . . . . . . . . . . . . . . . . . . . . . . . . Relay Couplers Released . | . . . . . . . . . . . . . . . . . . . . . . . . . . . . . . . . . . . . . Robots Rewired 10 | . . . . . . . . . . . . . . . . . . . . . . . . . . . . 10 . . . . . . . . Allies Hacked . | . . . . . . . . . . . . . . . . . . . . . . . . . . . . . . . . . . . . . Hacks Repelled . | . . . . . . . . . . . . . . . . . . . . . . . . . . . . . . . . . . . . . Allies | -11 -10 -10 -9 -9 -9 -8 -8 -7 -7 -7 -7 -7 -7 -6 -6 -6 -6 -6 -6 -6 -5 -5 -5 -5 -5 -4 -4 -4 -4 -4 -4 -3 -3 -2 -2 -2 -------- Run | Scr Mat Min Mat Min Exi Min Mat Fac Was Fac Low Low Dat Pro Fac Was Fac Low Low Zio Pro Fac Upp Upp Zhi Pro Fac Ext Cet Arc Hub Res Qua Res Tes Sec Total Allies 55 | . 1 . . 2 . . . . 20 1 . . . . . . 3 . . . . 4 . . . . . 17 5 . . . 1 . . 1 Largest Group 20 | . 1 1 1 2 1 . . . 20 1 . . . . . . 3 . . . . 3 . . . . . 11 9 8 7 . 1 1 . 1 Highest-Rated Group 736 | . 10 10 10 45 31 . . . 483 26 . . . . . . 93 . . . . 87 . . . . . 556 736 642 495 . 26 26 . 10 Highest-Rated Ally 156 | . 10 10 10 31 31 . . . 35 26 . . . . . . 31 . . . . 29 . . . . . 156 156 142 94 . 26 26 . 10 Total Orders 5 | . . . 2 . . . . . . . . . . . . . . . . . . . . . . . . 1 . . . . . 2 . . STAY 3 | . . . 1 . . . . . . . . . . . . . . . . . . . . . . . . 1 . . . . . 1 . . FOLLOW 2 | . . . 1 . . . . . . . . . . . . . . . . . . . . . . . . . . . . . . 1 . . Ally Attacks 226 | . . . . . 23 . . . . . . . . . . . 13 . . . . 11 . . . . . 77 14 43 45 . . . . . Total Damage 7516 | . . . . . 1060 . . . . . . . . . . . 262 . . . . 192 . . . . . 2163 360 1678 1801 . . . . . Kills 45 | . . . . . 8 . . . . . . . . . . . 1 . . . . 1 . . . . . 19 2 4 10 . . . . . Allies Corrupted . | . . . . . . . . . . . . . . . . . . . . . . . . . . . . . . . . . . . . . Allies Melted . | . . . . . . . . . . . . . . . . . . . . . . . . . . . . . . . . . . . . . Turrets Deployed 3 | . . . . . 3 . . . . . . . . . . . . . . . . . . . . . . . . . . . . . . . Intel | -11 -10 -10 -9 -9 -9 -8 -8 -7 -7 -7 -7 -7 -7 -6 -6 -6 -6 -6 -6 -6 -5 -5 -5 -5 -5 -4 -4 -4 -4 -4 -4 -3 -3 -2 -2 -2 ------- Run | Scr Mat Min Mat Min Exi Min Mat Fac Was Fac Low Low Dat Pro Fac Was Fac Low Low Zio Pro Fac Upp Upp Zhi Pro Fac Ext Cet Arc Hub Res Qua Res Tes Sec Robot Analysis Total 9 | . 2 . . . . . . . . 2 . . . . . . . . . . . . . . 4 . . 1 . . . . . . . . Derelict Logs Recovered 14 | . . 2 . 3 . . . . . . 1 1 . 1 . . . . 2 . 1 . 1 2 . . . . . . . . . . . . Drone Launches . | . . . . . . . . . . . . . . . . . . . . . . . . . . . . . . . . . . . . . Drone Recoveries . | . . . . . . . . . . . . . . . . . . . . . . . . . . . . . . . . . . . . . Exploration | -11 -10 -10 -9 -9 -9 -8 -8 -7 -7 -7 -7 -7 -7 -6 -6 -6 -6 -6 -6 -6 -5 -5 -5 -5 -5 -4 -4 -4 -4 -4 -4 -3 -3 -2 -2 -2 ------------- Run | Scr Mat Min Mat Min Exi Min Mat Fac Was Fac Low Low Dat Pro Fac Was Fac Low Low Zio Pro Fac Upp Upp Zhi Pro Fac Ext Cet Arc Hub Res Qua Res Tes Sec Turns Passed 25338 | 88 2852 1218 4085 753 1375 280 2495 602 192 911 803 228 72 294 724 48 600 718 134 317 179 609 525 235 115 224 269 846 272 148 166 193 689 358 934 787 Spaces Moved 25511 | 34 776 605 1461 457 765 139 1043 1153 240 1715 824 559 128 553 1280 104 1156 809 377 905 414 1068 274 524 210 458 486 928 244 216 362 349 1218 600 1745 1332 Core 91 | 9 . . . . . . . . . . . . . . . . . . . . . . . . . . . . . . . . . . 1 81 Treads 4811 | . 341 605 1461 457 765 139 1043 . . . . . . . . . . . . . . . . . . . . . . . . . . . . . Legs 25 | 25 . . . . . . . . . . . . . . . . . . . . . . . . . . . . . . . . . . . . Wheels 435 | . 435 . . . . . . . . . . . . . . . . . . . . . . . . . . . . . . . . . . . Hover . | . . . . . . . . . . . . . . . . . . . . . . . . . . . . . . . . . . . . . Flight 20149 | . . . . . . . . 1153 240 1715 824 559 128 553 1280 104 1156 809 377 905 414 1068 274 524 210 458 486 928 244 216 362 349 1218 600 1744 1251 Fastest Speed 21 | 120 100 160 160 160 160 180 180 23 23 26 27 30 27 27 32 32 32 34 34 34 34 34 34 34 28 28 21 21 28 34 34 34 34 34 34 34 Average Speed 59 | 141 126 160 160 160 174 180 180 28 26 31 32 33 31 33 33 32 34 34 34 34 35 34 34 34 34 28 27 29 33 34 34 34 34 34 34 35 Slowest Speed 650 | 200 160 160 180 160 180 180 200 96 29 34 34 34 34 34 37 32 37 34 34 34 114 34 34 34 108 28 28 103 34 34 34 34 34 34 650 150 Overloaded Moves 22 | . . . . . . . . . . . . . . . . . . . . . . . . . . . 3 19 . . . . . . . . Propulsion Burnouts . | . . . . . . . . . . . . . . . . . . . . . . . . . . . . . . . . . . . . . Robots Hopped 161 | . . . . . . . . 15 1 9 . . 2 . 1 . 9 1 . . . 17 . . . . 2 7 . 5 16 5 20 11 28 12 Cave-ins Triggered 1 | . . . . . . . . . . . . . . . . . . . . . . . . . . . 1 . . . . . . . . . Teleports 1 | . . . . . . . . . . . . . . . . . . . . . . . . . . . . . . . . . 1 . . . Exploration Rate (%) 60 | 4 95 97 89 89 70 53 72 36 81 45 76 77 77 70 26 70 33 73 47 84 47 34 45 63 62 61 17 62 74 89 32 11 91 27 93 53 Regions Visited 36 Branch Regions 23 Pre-discovered Areas 12 | . 1 1 . 1 . . . . . . . 1 1 . . . . . . 3 . . . 1 3 . . . . . . . . . . . Known Exits Taken 26 | . . . . 1 . 1 . . . 1 1 1 1 1 . . 1 1 1 1 1 1 1 1 1 1 1 1 1 1 1 1 1 1 1 . Unknown Exits Taken 6 | 1 1 1 1 . 1 . 1 . . . . . . . . . . . . . . . . . . . . . . . . . . . . . Scrap Searched 23 | . . 1 . 1 . 1 . . . . 3 2 . 2 . . . 2 3 3 2 . . 3 . . . . . . . . . . . . Spaces Dug 250 | . . . 14 . . . 3 1 . 13 2 . . . 15 . 3 2 . . 1 25 4 3 . 4 19 17 . . 13 17 34 15 16 29 Terrain Destroyed 568 | . 10 41 52 9 . 7 9 1 . 13 2 . . . 26 . 3 9 . . 1 25 4 3 . 4 19 17 15 . 187 17 34 15 16 29 Melee 93 | . . . 1 . . . 3 1 . 13 2 . . . 10 . 3 2 . . 1 10 . . . 1 1 4 . . . . 10 3 16 12 Projectile 146 | . . . . . . . 2 . . . . . . . 5 . . . . . . 15 4 3 . 3 18 13 . . 13 17 24 12 . 17 AOE 329 | . 10 41 51 9 . 7 4 . . . . . . . 11 . . 7 . . . . . . . . . . 15 . 174 . . . . . Terrain Rammed . | . . . . . . . . . . . . . . . . . . . . . . . . . . . . . . . . . . . . . Walls Destroyed . | . . . . . . . . . . . . . . . . . . . . . . . . . . . . . . . . . . . . . Machines Disabled . | . . . . . . . . . . . . . . . . . . . . . . . . . . . . . . . . . . . . . Actions | -11 -10 -10 -9 -9 -9 -8 -8 -7 -7 -7 -7 -7 -7 -6 -6 -6 -6 -6 -6 -6 -5 -5 -5 -5 -5 -4 -4 -4 -4 -4 -4 -3 -3 -2 -2 -2 --------- Run | Scr Mat Min Mat Min Exi Min Mat Fac Was Fac Low Low Dat Pro Fac Was Fac Low Low Zio Pro Fac Upp Upp Zhi Pro Fac Ext Cet Arc Hub Res Qua Res Tes Sec Total 34320 | 59 2586 839 3015 469 809 157 1518 1394 367 2009 1350 598 149 661 1553 119 1316 1227 382 911 440 1256 702 544 245 529 598 1433 429 282 371 401 1419 714 1926 1543 Wait 7003 | 10 1723 208 1299 . 18 1 300 144 112 153 521 39 17 109 202 13 114 384 6 . 7 139 426 1 1 44 69 375 150 69 1 22 117 78 52 79 Move 25179 | 33 775 604 1460 456 764 138 1042 1126 237 1697 823 558 124 552 1278 103 1137 806 376 904 413 1036 273 523 209 457 480 914 243 205 339 339 1177 580 1689 1309 Hop 135 | . . . . . . . . 12 1 8 . . 1 . 1 . 9 1 . . . 14 . . . . 2 6 . 5 6 4 20 8 26 11 Pick Up 204 | 1 19 3 28 1 10 3 17 11 3 10 . . 1 . 11 1 7 3 . . 2 5 . . 4 1 6 11 6 . 1 3 10 3 11 12 Fast Attach 170 | 1 1 . 24 . 2 . 16 8 2 3 . . . . 8 . 6 1 . 3 3 8 . . 11 2 5 8 1 . 4 5 13 8 17 10 Attach 120 | 2 1 5 3 . 2 1 4 22 4 3 . . . . 7 . 4 4 . . 1 4 . . 2 1 1 4 5 . 1 1 7 1 10 20 Detach 83 | . . . 3 . 1 . 2 16 1 1 . . . . 5 . 2 1 . . 1 6 . . . 1 1 3 . . 1 1 4 5 8 20 Swap 146 | . 14 2 28 6 1 5 22 3 2 1 1 1 . . 1 . 1 . . . 1 3 . . 1 . 2 10 5 2 . . 7 1 24 2 Drop 356 | 3 13 1 45 1 10 1 35 30 5 13 . . 1 . 16 2 10 4 . 3 5 11 . . 13 3 11 16 13 . 2 8 23 8 30 20 Fire 453 | 9 34 9 94 3 1 3 68 . . . 1 . . . 6 . 10 21 . . 2 13 3 8 1 11 18 33 6 1 16 18 25 13 . 26 Melee 293 | . . . 1 . . . 4 22 . 42 2 . 5 . 18 . 16 2 . 1 3 17 . 12 3 9 2 17 . . . . 16 9 58 34 Ram 1 | . . . . . . . . . . . . . . . . . . . . . . . . . . . . 1 . . . . . . . . Kick . | . . . . . . . . . . . . . . . . . . . . . . . . . . . . . . . . . . . . . Crush 58 | . 6 7 30 2 . 5 8 . . . . . . . . . . . . . . . . . . . . . . . . . . . . . Escape Stasis 91 | . . . . . . . . . . 78 . . . . . . . . . . . . . . . . 1 11 . . . . . . 1 . Rewire 24 | . . . . . . . . . . . . . . . . . . . . . . . . . . . . 24 . . . . . . . . Trap 4 | . . . . . . . . . . . 2 . . . . . . . . . 2 . . . . . . . . . . . . . . . Miscellaneous . | . . . . . . . . . . . . . . . . . . . . . . . . . . . . . . . . . . . . . Route ------- -11/Scrapyard -10/Materials (discovered 4 exits: *Mat x3 / [*Min]) -10/Mines (discovered 2 exits: *Mat x2) -9/Materials (discovered 5 exits: *Mat x3 / *Min x2) -9/Mines (discovered 3 exits: *Mat x2 / *Exi) -9/Exiles (discovered 2 exits: [*Min x2]) -8/Mines -8/Materials (discovered 2 exits: *Fac x2) -7/Factory (discovered 2 exits: *Fac x2) -7/Waste -7/Factory (discovered 5 exits: *Fac / Sto x2 / *Low x2) -7/Lower Caves (discovered 2 exits: *Low / *Dat) -7/Lower Caves (discovered 2 exits: *Fac / *Dat) -7/Data Miner -6/Proximity Caves -6/Factory (discovered 3 exits: *Fac / *Low x2) -6/Waste -6/Factory (discovered 3 exits: *Fac x2 / *Low) -6/Lower Caves -6/Lower Caves (discovered 2 exits: *Fac / *Zio) -6/Zion -5/Proximity Caves -5/Factory (discovered 4 exits: *Fac x2 / *Upp x2) -5/Upper Caves -5/Upper Caves (discovered 2 exits: Fac / *Zhi) -5/Zhirov -4/Proximity Caves -4/Factory (discovered 2 exits: *Res / *Ext) -4/Extension (discovered 2 exits: *Res / *Cet) -4/Cetus -4/Archives (discovered 3 exits: *Res / *Hub x2) -4/Hub_04(d) (discovered 3 exits: *Res x3) -3/Research -3/Quarantine -2/Research -2/Testing (discovered 2 exits: [*Acc] / *Sec) -2/Section 7 (discovered 1 exit: [*Acc]) History --------- Turn | Location | Event 13 | -11/Scrapyard | Discovered new exit (range 3) 89 | -11/Scrapyard | Entered Materials 307 | -10/Materials | Build established: Mutant 2001 | -10/Materials | Discovered new exit (range 8) 2030 | -10/Materials | Central database locked down 2098 | -10/Materials | Discovered new exit (range 12) 2472 | -10/Materials | Repaired Ion Engine 2492 | -10/Materials | Discovered new exit (range 19) 2864 | -10/Materials | Discovered new exit (range 6) 2941 | -10/Materials | Entered Mines 2941 | -10/Mines | Accompanied by 1 ally 2959 | -10/Mines | Learned Materials emergency access door positions 3054 | -10/Mines | Destroyed YI-UF0 3077 | -10/Mines | Lost 5 parts (1p2n2w) 3186 | -10/Mines | Learned 4 Materials zone layouts 3212 | -10/Mines | A weapon hastily lodged in a ceiling crevice suddenly fell to the ground 3259 | -10/Mines | Learned location of Storage (-7) 3346 | -10/Mines | Build established: Scavenger-Mutant 3507 | -10/Mines | Discovered new exit (range 6) 3530 | -10/Mines | Discovered new exit (range 10) 4159 | -10/Mines | Entered Materials 4159 | -9/Materials | Accompanied by 1 ally 4159 | -9/Materials | Evolved 2 slots: Propulsion x1, Utility x1 4160 | -9/Materials | Identified exit to Materials 5529 | -9/Materials | Build established: Mutant 5968 | -9/Materials | Discovered new exit (range 16) 6030 | -9/Materials | Repaired Hrd. Light Armor Plating 6083 | -9/Materials | Repaired Imp. Medium Laser 6110 | -9/Materials | Repaired Lgt. Treads 6487 | -9/Materials | Repaired Imp. Medium Laser 6999 | -9/Materials | Discovered new exit (range 6) 7199 | -9/Materials | Repaired Hrd. Light Armor Plating 7252 | -9/Materials | Repaired Hvy. Ion Engine 7340 | -9/Materials | Discovered exit to Materials (range 12) 7759 | -9/Materials | First assault squad dispatched 7847 | -9/Materials | Discovered exit to Materials (range 7) 8244 | -9/Materials | Entered Mines 8314 | -9/Mines | Found a damaged Exp. Sensor Array with a note attached 8317 | -9/Mines | Found Prototype Device 8383 | -9/Mines | Discovered exit to Materials (range 6) 8433 | -9/Mines | Learned Materials non-interactive machine intel 8484 | -9/Mines | Assembled infested the area 8755 | -9/Mines | Discovered exit to Materials (range 6) 8909 | -9/Mines | Identified exit to Exiles 8930 | -9/Mines | Learned location of Zion (-6) 8997 | -9/Mines | Entered Exiles 8997 | -9/Exiles | Accompanied by 1 ally 9027 | -9/Exiles | Led the pair of lost Derelicts to a safe place 9041 | -9/Exiles | Met 8R-AWN 9067 | -9/Exiles | Met EX-HEX 9110 | -9/Exiles | Met EX-BIN 9132 | -9/Exiles | Aligned with FarCom system 9134 | -9/Exiles | Given EX-Vault access code 9172 | -9/Exiles | Opened EX-Vault 9207 | -9/Exiles | Warned to stay clear of 0b10 Research branches 9257 | -9/Exiles | Met EX-DEC 9466 | -9/Exiles | Discovered new exit (range 15) 9637 | -9/Exiles | Build established: Hauler-Mutant 9895 | -9/Exiles | Found Deploy-a-Sentry 10029 | -9/Exiles | DAS Turret deployed 10153 | -9/Exiles | Found Deploy-a-Sentry 10156 | -9/Exiles | Found Deploy-a-Sentry 10288 | -9/Exiles | DAS Turret deployed 10296 | -9/Exiles | DAS Turret deployed 10303 | -9/Exiles | Attacked by the Exiles 10334 | -9/Exiles | Discovered new exit (range 14) 10372 | -9/Exiles | Entered Mines 10641 | -8/Mines | Discovered exit to Materials (range 7) 10652 | -8/Mines | Entered Materials 10652 | -8/Materials | Evolved 2 slots: Utility x2 10652 | -8/Materials | Identified Exp. Sensor Array 10653 | -8/Materials | Loaded intel: 26 non-interactive machine locations 12008 | -8/Materials | Repaired Faulty Exp. Sensor Array 12103 | -8/Materials | Discovered new exit (range 16) 12544 | -8/Materials | Build established: Scavenger-Mutant 12574 | -8/Materials | Repaired Lgt. Treads 12661 | -8/Materials | Repaired Gauss Rifle 12951 | -8/Materials | Discovered new exit (range 8) 13147 | -8/Materials | Entered Factory 13147 | -7/Factory | Evolved 2 slots: Propulsion x2 13469 | -7/Factory | Discovered new exit (range 16) 13504 | -7/Factory | Discovered new exit (range 9) 13517 | -7/Factory | Identified exit to Factory 13605 | -7/Factory | Fabricated Med. Storage Unit (x1) 13673 | -7/Factory | Build established: Sprinter 13716 | -7/Factory | Repaired Broken Imp. VTOL Module 13749 | -7/Factory | Manually triggered Chute Trap 13749 | -7/Factory | Sucked down chute 13749 | -7/Factory | Entered Waste 13750 | -7/Waste | Joined by Warlord forces that had cleared the area 13937 | -7/Waste | Discovered new exit (range 11) 13939 | -7/Waste | Identified exit to Factory 13941 | -7/Waste | Entered Factory 13973 | -7/Factory | Discovered new exit (range 13) 13982 | -7/Factory | Identified exit to Lower Caves 14079 | -7/Factory | Repaired Nuclear Pulse Array 14181 | -7/Factory | Fabricated Field Propulsion Array? 14405 | -7/Factory | Discovered exit to Factory (range 9) 14444 | -7/Factory | Local fabrication network quarantined 14583 | -7/Factory | Identified exit to Storage 14630 | -7/Factory | Build established: Mutant 14852 | -7/Factory | Entered Lower Caves 14925 | -7/Lower Caves | Learned Factory garrison access intel 14950 | -7/Lower Caves | A Derelict revealed a hidden shortcut to meet someone special 15653 | -7/Lower Caves | Discovered new exit (range 4) 15654 | -7/Lower Caves | Identified exit to Lower Caves 15655 | -7/Lower Caves | Entered another Lower Caves area 15663 | -7/Lower Caves | Discovered exit to Factory (range 15) 15725 | -7/Lower Caves | Encountered a Warlord checkpoint 15880 | -7/Lower Caves | Discovered new exit (range 9) 15882 | -7/Lower Caves | Identified exit to Data Miner 15883 | -7/Lower Caves | Entered Data Miner 15883 | -7/Data Miner | Discovered new exit (range 6) 15890 | -7/Data Miner | Met Data Miner 15896 | -7/Data Miner | Learned location of Section 7 (-2) 15896 | -7/Data Miner | Acquired the access code to Warlord's prototype stash 15902 | -7/Data Miner | Received God Mode back door access code from Data Miner 15939 | -7/Data Miner | Data Conduit disabled 15955 | -7/Data Miner | Identified exit to Proximity Caves 15955 | -7/Data Miner | Entered Proximity Caves 16199 | -6/Proximity Caves | Learned Factory terminal intel 16202 | -6/Proximity Caves | Discovered exit to Factory (range 14) 16249 | -6/Proximity Caves | Entered Factory 16249 | -6/Factory | Evolved 2 slots: Power x1, Utility x1 16250 | -6/Factory | Loaded intel: 19 terminal locations 16251 | -6/Factory | Loaded intel: 4 garrison access locations 16286 | -6/Factory | Identified exit to Lower Caves 16658 | -6/Factory | Build established: Sprinter 16670 | -6/Factory | Repaired Imp. Utility Shielding 16704 | -6/Factory | Found Faulty Exp. Targeting Computer 16797 | -6/Factory | Discovered new exit (range 5) 16799 | -6/Factory | Identified exit to Factory 16832 | -6/Factory | Local fabrication network quarantined 16949 | -6/Factory | Fabricated Exp. Sensor Array (x1) 16949 | -6/Factory | First assault squad dispatched 16973 | -6/Factory | Manually triggered Chute Trap 16973 | -6/Factory | Sucked down chute 16973 | -6/Factory | Entered Waste 16975 | -6/Waste | Spotted C-40 Crusher 16977 | -6/Waste | Spotted C-40 Crusher 16978 | -6/Waste | Spotted C-40 Crusher 16981 | -6/Waste | Spotted C-40 Crusher 16985 | -6/Waste | Spotted C-40 Crusher 17006 | -6/Waste | Spotted C-40 Crusher 17006 | -6/Waste | Discovered new exit (range 13) 17021 | -6/Waste | Identified exit to Factory 17021 | -6/Waste | Entered Factory 17161 | -6/Factory | Repaired Enh. Nuclear Core? 17216 | -6/Factory | Discovered exit to Factory (range 16) 17308 | -6/Factory | Discovered exit to Lower Caves (range 15) 17321 | -6/Factory | Build established: Mutant 17395 | -6/Factory | Repaired Fission Core 17491 | -6/Factory | Discovered exit to Factory (range 11) 17493 | -6/Factory | Allied Derelicts emerged from ambush trap array 17621 | -6/Factory | Entered Lower Caves 18108 | -6/Lower Caves | Discovered new exit (range 14) 18339 | -6/Lower Caves | Identified exit to Lower Caves 18339 | -6/Lower Caves | Entered another Lower Caves area 18339 | -6/Lower Caves | Discovered exit to Factory (range 16) 18340 | -6/Lower Caves | Encountered a Warlord checkpoint 18371 | -6/Lower Caves | Learned location of 1 exit from Factory 18373 | -6/Lower Caves | Learned Factory stockpile data 18470 | -6/Lower Caves | Discovered new exit (range 9) 18473 | -6/Lower Caves | Identified exit to Zion 18473 | -6/Lower Caves | Entered Zion 18491 | -6/Zion | Discovered new exit (range 11) 18520 | -6/Zion | Given the Hacking Drone Bay 18523 | -6/Zion | System corruption cleaned by Quarantine Array 18579 | -6/Zion | Learned location of Armory (-4) 18623 | -6/Zion | Learned location of Quarantine (-3) 18790 | -6/Zion | Identified exit to Proximity Caves 18790 | -6/Zion | Entered Proximity Caves 18835 | -5/Proximity Caves | Learned Factory terminal intel 18865 | -5/Proximity Caves | Found Alien Artifact 18865 | -5/Proximity Caves | Identified Core Expander 18865 | -5/Proximity Caves | Installed Core Expander, added new Weapon slot 18928 | -5/Proximity Caves | Discovered exit to Factory (range 7) 18969 | -5/Proximity Caves | Entered Factory 18969 | -5/Factory | Evolved 2 slots: Propulsion x1, Utility x1 18970 | -5/Factory | Identified exit to Upper Caves 18972 | -5/Factory | Loaded intel: 20 terminal locations 19110 | -5/Factory | Discovered new exit (range 15) 19115 | -5/Factory | Identified exit to Factory 19171 | -5/Factory | Discovered exit to Factory (range 14) 19344 | -5/Factory | Spotted B-75 Beast 19410 | -5/Factory | Repaired Imp. Propulsion Shielding 19528 | -5/Factory | Fabricated G-50 Soldier? 19578 | -5/Factory | Entered Upper Caves 19599 | -5/Upper Caves | Learned 4 Factory zone layouts 20101 | -5/Upper Caves | Discovered new exit (range 7) 20103 | -5/Upper Caves | Identified exit to Upper Caves 20103 | -5/Upper Caves | Entered another Upper Caves area 20294 | -5/Upper Caves | Discovered new exit (range 10) 20297 | -5/Upper Caves | Identified exit to Zhirov 20338 | -5/Upper Caves | Entered Zhirov 20338 | -5/Zhirov | Discovered new exit (range 3) 20345 | -5/Zhirov | Met Zhirov 20351 | -5/Zhirov | Learned location of Testing (-2) 20351 | -5/Zhirov | Learned location of Command (-1) 20360 | -5/Zhirov | Zhirov requested help retrieving the SGEMP Prototype 20365 | -5/Zhirov | Found Alien Artifact 20365 | -5/Zhirov | Identified Integrated Reactor 20365 | -5/Zhirov | Installed Integrated Reactor, increased core energy generation (+10) 20373 | -5/Zhirov | Found Alien Artifact 20452 | -5/Zhirov | Identified exit to Proximity Caves 20453 | -5/Zhirov | Entered Proximity Caves 20615 | -4/Proximity Caves | Spotted B-86 Titan 20671 | -4/Proximity Caves | Build established: Sprinter 20675 | -4/Proximity Caves | Discovered exit to Factory (range 10) 20677 | -4/Proximity Caves | Entered Factory 20677 | -4/Factory | Evolved 2 slots: Utility x2 20706 | -4/Factory | Found Quantum Capacitor 20858 | -4/Factory | Fabricated Adv. Hacking Suite (x1) 20901 | -4/Factory | Discovered new exit (range 6) 20911 | -4/Factory | Identified exit to Research 20928 | -4/Factory | Crushed by falling debris 20941 | -4/Factory | Discovered new exit (range 14) 20945 | -4/Factory | Identified exit to Extension 20946 | -4/Factory | Entered Extension 20965 | -4/Extension | Rescued a captive Derelict 20971 | -4/Extension | Rescued a captive Derelict 21041 | -4/Extension | Build established: Hacker-Sprinter 21324 | -4/Extension | Rescued a captive Derelict 21331 | -4/Extension | Rescued a captive Derelict 21662 | -4/Extension | Rescued a captive Derelict 21674 | -4/Extension | Energy Cycler disabled 21674 | -4/Extension | Rescued a captive Derelict 21674 | -4/Extension | Rescued a captive Derelict 21674 | -4/Extension | Central database locked down 21674 | -4/Extension | Rescued a captive Derelict 21676 | -4/Extension | Rescued A7 21768 | -4/Extension | Discovered exit to Research (range 10) 21768 | -4/Extension | Discovered new exit (range 6) 21773 | -4/Extension | Identified exit to Cetus 21792 | -4/Extension | Entered Cetus 21792 | -4/Cetus | Accompanied by 4 allies (A7) 21797 | -4/Cetus | Acquired a Cetus Manufacturing Module code from A7 21814 | -4/Cetus | Spotted Cetus Guard 21814 | -4/Cetus | Spotted Cetus Guard 21815 | -4/Cetus | Spotted Cetus Guard 21815 | -4/Cetus | Spotted Cetus Guard 21830 | -4/Cetus | Destroyed Cetus Guard 21832 | -4/Cetus | Destroyed Cetus Guard 21901 | -4/Cetus | Escorted A7 to Cetus Mainframe 21903 | -4/Cetus | Started Cetus Manufacturing Module 21928 | -4/Cetus | Manufactured an Enhanced Grunt 21928 | -4/Cetus | Discovered new exit (range 15) 21937 | -4/Cetus | Identified exit to Archives 21953 | -4/Cetus | Manufactured an Enhanced Grunt 21978 | -4/Cetus | Manufactured an Enhanced Grunt 21985 | -4/Cetus | Build established: Hacker-Mutant 22003 | -4/Cetus | Manufactured an Enhanced Grunt 22028 | -4/Cetus | Manufactured an Enhanced Grunt 22064 | -4/Cetus | Entered Archives 22064 | -4/Archives | Accompanied by 8 allies (A7) 22069 | -4/Archives | Received a hacking code to weaken MAIN.C 22116 | -4/Archives | Unable to access archive contents 22121 | -4/Archives | Discovered new exit (range 15) 22124 | -4/Archives | Unable to access archive contents 22127 | -4/Archives | Discovered new exit (range 13) 22167 | -4/Archives | Identified exit to Hub_04(d) 22186 | -4/Archives | Discovered exit to Research (range 16) 22212 | -4/Archives | Entered Hub_04(d) 22212 | -4/Hub_04(d) | Accompanied by 7 allies 22261 | -4/Hub_04(d) | Discovered exit to Research (range 9) 22265 | -4/Hub_04(d) | Discovered exit to Research (range 13) 22342 | -4/Hub_04(d) | Discovered exit to Research (range 6) 22357 | -4/Hub_04(d) | Network Hub disabled 22373 | -4/Hub_04(d) | Spotted Lightning 22373 | -4/Hub_04(d) | Spotted Lightning 22378 | -4/Hub_04(d) | Entered Research 22378 | -3/Research | Evolved 2 slots: Utility x2 22463 | -3/Research | Identified Transdimensional Reconstructor 22554 | -3/Research | Found Enh. Force Lance 22555 | -3/Research | Found Enh. Force Lance 22558 | -3/Research | Found Enh. Force Lance 22563 | -3/Research | Discovered new exit (range 5) 22564 | -3/Research | Identified exit to Quarantine 22571 | -3/Research | Entered Quarantine 22589 | -3/Quarantine | Found Alien Artifact 22692 | -3/Quarantine | Found Enh. Force Lance 22751 | -3/Quarantine | Discovered new exit (range 14) 22778 | -3/Quarantine | Identified Subatomic Replicator 22788 | -3/Quarantine | Found Alien Artifact 22788 | -3/Quarantine | Identified Matter Drive 22862 | -3/Quarantine | Warped through subspace 23038 | -3/Quarantine | Found Alien Slashing Weapon 23038 | -3/Quarantine | Identified Sigix Broadsword 23127 | -3/Quarantine | Found Alien Artifact 23157 | -3/Quarantine | Repaired Centrium Medium Armor Plating 23187 | -3/Quarantine | Identified Core Reset Matrix 23257 | -3/Quarantine | Identified exit to Research 23260 | -3/Quarantine | Entered Research 23260 | -2/Research | Accompanied by 1 ally 23260 | -2/Research | Evolved 2 slots: Utility x1, Weapon x1 23400 | -2/Research | Fabricated Adv. Hacking Suite (x1) 23488 | -2/Research | Spotted B-90 Cyclops 23490 | -2/Research | Spotted B-90 Cyclops 23494 | -2/Research | Spotted B-90 Cyclops 23514 | -2/Research | Spotted B-90 Cyclops 23608 | -2/Research | Discovered new exit (range 10) 23611 | -2/Research | Identified exit to Testing 23618 | -2/Research | Entered Testing 23658 | -2/Testing | Build established: Scavenger-Mutant 23706 | -2/Testing | Spotted PH-YE95LF5FIF 23842 | -2/Testing | Discovered new exit (range 8) 23986 | -2/Testing | Destroyed PH-YE95LF5FIF 24445 | -2/Testing | Found Prototype Energy Cannon 24445 | -2/Testing | Identified Hpw. Disruptor Cannon 24526 | -2/Testing | Spotted Fortress 24550 | -2/Testing | Discovered new exit (range 6) 24551 | -2/Testing | Identified exit to Section 7 24552 | -2/Testing | Entered Section 7 24567 | -2/Section 7 | Found Integrated Reactor 24567 | -2/Section 7 | Installed Integrated Reactor, increased core energy generation (+10) 24586 | -2/Section 7 | Found Alien Artifact 24586 | -2/Section 7 | Identified Integrated Dissipator 24586 | -2/Section 7 | Installed Integrated Dissipator, increased core heat dissipation (+20) 24613 | -2/Section 7 | Found Gamma Bomb Array 24615 | -2/Section 7 | Found Gamma Bomb Array 24736 | -2/Section 7 | Spotted B-90 Cyclops 24880 | -2/Section 7 | Found Core Reset Matrix 24923 | -2/Section 7 | Discovered new exit (range 10) 24933 | -2/Section 7 | Spotted S7 Guard 25071 | -2/Section 7 | Found Alien Artifact 25071 | -2/Section 7 | Identified Core Regenerator 25071 | -2/Section 7 | Used Core Regenerator, restored core integrity (+362) 25168 | -2/Section 7 | Spotted B-90 Cyclops 25178 | -2/Section 7 | Spotted Alpha 7 25179 | -2/Section 7 | Spotted Alpha 7 25185 | -2/Section 7 | Spotted B-99 Colossus 25214 | -2/Section 7 | Found Integrated Dissipator 25214 | -2/Section 7 | Installed Integrated Dissipator, increased core heat dissipation (+20) 25226 | -2/Section 7 | Found Alien Artifact 25226 | -2/Section 7 | Identified LRC Insulator 25226 | -2/Section 7 | Installed LRC Insulator, gained EM resistance (25) 25229 | -2/Section 7 | Found Alien Artifact 25229 | -2/Section 7 | Identified LRC Armor 25229 | -2/Section 7 | Installed LRC Armor, increased core integrity (+250) 25231 | -2/Section 7 | Found Alien Artifact 25231 | -2/Section 7 | Identified LRC Matter Compressor 25231 | -2/Section 7 | Installed LRC Matter Compressor, increased matter storage capacity (+125) 25251 | -2/Section 7 | Scanned by Researcher 25252 | -2/Section 7 | Intercept squad dispatched 25271 | -2/Section 7 | Spotted Tracker 25274 | -2/Section 7 | Spotted Tracker 25288 | -2/Section 7 | Used Subatomic Replicator to replicate Enh. Force Lance 25302 | -2/Section 7 | First assault squad dispatched 25308 | -2/Section 7 | Core integrity fell below 50% 25315 | -2/Section 7 | Core integrity fell below 20% 25336 | -2/Section 7 | Lost 7 parts (3n4u) 25337 | -2/Section 7 | Spotted Combat Programmer 25339 | -2/Section 7 | Destroyed by Tracker with Immobilizer Last Messages --------------- 25305_ Critical hit. 25305_ Centrium Medium Armor Plating destroyed. 25306_ Slug penetrates Machine. 25306_ Slug penetrates Reinforced Barrier. 25307_ Penetrated by Slug. 25307_ Slug penetrates Machine. 25307_ Penetrated by Slug. 25307_ Slug penetrates Machine. 25308_ Penetrated by Slug. 25311_ Slug penetrates Reinforced Barrier. 25311_ Penetrated by Slug. 25311_ Machine disabled. 25311_ Slug penetrates Machine. 25311_ Penetrated by Slug. 25312_ H-88 Terminator IFF system glitched. 25312_ Slug penetrates Suspension Chamber. 25314_ Slug penetrates Alpha 7. 25314_ Penetrated by Slug. 25314_ Slug penetrates Reinforced Barrier. 25331_ Acquired 80 matter. Map ----- +----------------------------------------------------+ | "??" ?" | | """" "" """ "" | | " """ " | | "" " " "" """"""""" | | "" "??" " ""???????" "?? | | "" "?" """ "" "?"""""""" ""?? | | """""" "?" """ | | """"" | | "" | | """"" " | | """?" | | "?" | | "" """" | | "" % | | "" | | " | | """""""""" " """"""""" | | """""""""""" ###""""""""""""""""""""? | | """""""""""" #?#"""""""""""""""?????? | | ################### ###g/#?###############??????? | | ??????????????????# #?# #??????????????????????? | | ????????????????????#??# #??????????????????????? | | ???????????????????????# #??????????????????????? | | ???????????????????????# #??###############?????? | | ???????????????????????# #??#"""""" """""????? | | ???????????????????????# @#??#"""""" """""????? | | ???????????????????????# #??#"""""" ?????? | | ????????????############ s#### " """""#???? | | ????????????# """""#???? | | ????????????# """""#???? | | ????????????# ###############" """""#???? | | ????????##### #?????????????#"" = "#???? | | ?????#### # #####?????????#" * "#???? | | ?????#" ""]"" """"#?????????#"""""" """ "#???? | | ?????#" ]*!* | """#?????????######### !# ####???? | | ?????#" !]!! """#?????????????????# #?#??????? | | ?????#"""""!! """#?????????????????# #????????? | | ?????#"""" """#?????????????????# #????????? | | ?????#""""" """#?????????????????# #????????? | | ?????#""""" """#?###############?#! #????????? | | ?????#" """"#?#"""""""""""""#?# #????????? | | ?????#""""" """#?#"" """" #?# #????????? | | ?????#""""" """"#?#"" """" #?# #????????? | | ?????######## #####?#"" """" ### #????????? | | ????????????# #?????#"" """" #????????? | | ????????????# #?????# #????????? | | ????????????# #?????# ! ######????????? | | ????????????# ####### """" ""#?????????????? | | ????????????# """" ""#?????????????? | | ????????????# """" ""#?????????????? | +----------------------------------------------------+ Best States ------------- Heat Dissipation 89 Coolant Potential 100 Energy Generation 61 Energy Capacity 810 Matter Stores 300 Matter Capacity 425 Sight Range 20 Robot Scan Range 30 Terrain Scan Range 16 Terrain Scan Density 10 Jamming Range 16 Cloak Strength 3 Armor Coverage 900 Resistance: TH 30 Resistance: EM 25 Power Shielding 66 Propulsion Shielding 66 Utility Shielding 66 Weapon Shielding 90 Weapon Cycling 20 Evasion (%) 77 Melee Accuracy 8 Target Analysis 8 Core Analysis 10 Armor Integrity Analysis 66 Recoil Reduction 3 Offensive Hacking 42 Defensive Hacking 14 Item Schematics ----------------- Ripper | -9/Materials | Scanalyzed Lrn. Tractor Beam | -9/Materials | Scanalyzed Med. Storage Unit | -9/Materials | Scanalyzed Hcp. Storage Unit | -9/Materials | Scanalyzed Imp. VTOL Module | -7/Factory | Scanalyzed Adv. Hacking Suite | -7/Factory | Hacked Combat Drone Bay | -7/Data Miner | Free Lgt. Regenerative Plating | -7/Data Miner | Free Triangulator | -7/Data Miner | Free Exp. Sensor Array | -7/Data Miner | Free Exp. Targeting Computer | -7/Data Miner | Free Exp. ECM Suite | -7/Data Miner | Free Adv. Coolant Injector | -6/Factory | Downloaded Adv. Heavy Treads | -5/Factory | Hacked Assault Drone Bay | -5/Zhirov | Free Exp. Heat Sink | -5/Zhirov | Free Exp. Optical Array | -5/Zhirov | Free Imp. Arc Thrower | -5/Zhirov | Free Centrium Medium Armor Plating | -3/Research | Scanalyzed Adv. Armor Integrity Analyzer | -3/Research | Scanalyzed Com. HERF Cannon | -3/Quarantine | Hacked Cld. Q-thruster | -3/Quarantine | Hacked Robot Schematics ------------------ S-27 Virus | -7/Data Miner | Free L-41 Fighter | -7/Data Miner | Free G-50 Soldier | -7/Data Miner | Free X-72 Disruptor | -7/Data Miner | Free H-66 Slayer | -7/Data Miner | Free P-70 Sage | -7/Data Miner | Free I-36 Angel | -7/Data Miner | Free I-47 Archangel | -7/Data Miner | Free Fabricated ------------ Med. Storage Unit | x1 | -7/Factory Field Propulsion Array | x2 | -7/Factory | Preloaded Exp. Sensor Array | x1 | -6/Factory G-50 Soldier | x3 | -5/Factory | Preloaded Adv. Hacking Suite | x1 | -4/Factory Adv. Hacking Suite | x1 | -2/Research Alien Tech Used ----------------- Core Expander Integrated Reactor Matter Drive Transdimensional Reconstructor Sigix Broadsword Integrated Dissipator Core Regenerator LRC Insulator LRC Armor LRC Matter Compressor Subatomic Replicator Achievements -------------- Main Advantage Challenges ------------ None Game ------ Seed MassRiotAnalyzer Manual? 0 Play Time 07:36:08 Cumulative 323.2 hours Start 2022.01.02 @ 00:50:27 End 2022.01.04 @ 17:31:38 Sessions 7 Manual Loads 0 Difficulty Rogue Special Mode None Game No. 235 Rogue 235 Adventurer 0 Explorer 0 Win Type - Total 6 Types 5/0/1/0/0/0/0/0/0 Lore% 54 Gallery% 77 Achievement% 62 Wizard Run 0 Options --------- ASCII 0 Keyboard 0 Movement Numpad Keybinds 0 Fullscreen 2 Font 18/TerminusBold Map View 76x50 Tactical HUD 1 Map Filters NONE Filters NONE Steam 1 RUN: 25947e4f-ba0a-4db4-a8ae-5b9b3295349d